Workbook

Sheet Sun Path
C1: SUN PATH DIAGRAM GRAPH
A2: Input Data | L2: Transition
L4: 2018
A5: Date | B5: 2018-08-15 | L5: =Calculations!AK18 -> 2018-02-05
A6: Time | B6: 12:00:00
A7: Latitude | B7: 26.76 | L7: 24-Hour
A8: Longitude | B8: 75.78 | L8: =Calculations!AJ12/1440 -> 09:14:00
A9: Time Zone | B9: 5.5
A10: =IF(B6<Custom!D22, "Time Below Sunrise : " & TEXT(Custom!D22,"H:MM"), IF(B6>Custom!D23, "Time Above Sunset : " & TEXT(Custom!D23,"H:MM"), "")) -> 
A12: Select Data | L12: Output Data
L14: Altitude Angle | M14: =TEXT(Custom!H14, "0.00") & "°" -> 75.07°
L15: Azimuth Angle | M15: =TEXT(Custom!H21,"0.00") & "°" -> 148.79°
L17: Sunrise | M17: =Custom!D22 -> 06:03:11.183
L18: Sunset | M18: =Custom!D23 -> 19:00:02.048
C28: Developed by : | E28: HARSH SHARMA | H28: M.Tech. (Centre for Energy & Environment), MNIT
C30: Guided by : | E30: Dr. JYOTIRMAY MATHUR | H30: Professor, Malviya National Institute of Technology

Sheet Solar Panel
L5: SOLAR PANEL ANGLES | S5: Horizontal Axis - Tilt Angle
L8: Date | M8: 2018-08-15 | O8: Time | P8: 09:00:00
L9: Latitude | M9: 26.9124 | O9: =IF(P8<'Solar Irradiance'!D22, "Time Below Sunrise : " & TEXT('Solar Irradiance'!D22,"HH:MM"), IF(P8>'Solar Irradiance'!D23, "Time Above Sunset : " & TEXT('Solar Irradiance'!D23,"HH:MM"), "")) -> 
L10: Longitude | M10: 75.7873 | O10: Time Zone | P10: 5.5
L12: Vertical Axis - Tilt Angle
L13: Ideal Case | N13: Season-wise | P13: Custom
L14: =TEXT('Solar Irradiance'!K8,"0.00") & "°" -> 50.93° | N14: =TEXT('Solar Irradiance'!L8,"0.00") & "°" -> 0.72° | P14: 30
L16: Horizontal Axis - Tilt Angle
L17: =IF('Solar Irradiance'!H6<0,AzimuthToCompassAngle(360-'Solar Irradiance'!H15),AzimuthToCompassAngle('Solar Irradiance'!H15)) -> 93.9° SE
L19: Angle of Incidence
L20: Ideal Case | N20: Season-wise | P20: Custom
L21: =TEXT('Solar Irradiance'!K11,"0.00") & "°" -> 0.00° | N21: =TEXT('Solar Irradiance'!L11,"0.00") & "°" -> 50.21° | P21: =TEXT('Solar Irradiance'!M11,"0.00") & "°" -> 20.93°
L22: Solar Irradiance (W/m2)
L23: Ideal Case | N23: Season-wise | P23: Custom
L24: ='Solar Irradiance'!K14 -> 1333.41877 | N24: ='Solar Irradiance'!L14 -> 853.4013467 | P24: ='Solar Irradiance'!M14 -> 1245.4478
M33: Developed by : | O33: HARSH SHARMA | R33: M.Tech. (Centre for Energy & Environment), MNIT
M35: Guided by : | O35: Dr. JYOTIRMAY MATHUR | R35: Professor, Malviya National Institute of Technology

Sheet Solar Irradiance (hidden)
C2: SUN PATH VARIABLES CALCULATIONS
C4: Data | G4: Basic Variables | K4: Solar Irradiance Variables
C5: Date : | D5: ='Solar Panel'!M8 -> 2018-08-15 | G5: Declination Angle (δ) | H5: =IF(ISBLANK(D5),"",Declination(D13)) -> 13.78356417 | K5: Ideal Case | L5: Season-wise | M5: Custom
C6: Time : | D6: ='Solar Panel'!P8 -> 09:00:00 | G6: Hour Angle (ω) | H6: =IF(ISBLANK(D9),"",HourAngle(H8)) -> 52.895266
C7: Latitude (φ) : | D7: ='Solar Panel'!M9 -> 26.9124 | G7: Equation of Time | H7: =IF(ISBLANK(D5),"",Eot(D14)) -> -4.730264003 | K7: Tilt Angle (β)
C8: Longitude : | D8: ='Solar Panel'!M10 -> 75.7873 | G8: Local Solar Time | H8: =IF(ISBLANK(D9),"",LST(D6,D10,D8,H7)) -> 08:28:25.136 | K8: =K21 -> 50.92858041 | L8: =IF(ISNA(K8), NA(), BetaAngle(D7,D13)) -> 0.72116 | M8: ='Solar Panel'!P14 -> 30
C9: Time Zone : | D9: ='Solar Panel'!P10 -> 5.5
C10: Std. Time Longt : | D10: =15*D9 -> 82.5 | K10: Incidence Angle (θi)
K11: =L21 -> 0 | L11: =IF(ISNA(K11), NA(), IncidenceAngle(D7,H5,L8,H15,IF(H8>0.5, HourAngle(H8), HourAngleR(H8)))) -> 50.20743482 | M11: =IF(ISNA(K11), NA(), IF(ISBLANK(M8), "", IncidenceAngle(D7,H5,M8,H15,IF(H8>0.5, HourAngle(H8), HourAngleR(H8))))) -> 20.92864605
C12: Day Number Calculation | G12: Derived Variables
C13: nth Day | D13: =IF(ISBLANK(D5),"",D5-DATE(YEAR(D5),1,0)) -> 227 | G13: Zenith Angle (θz) | H13: =IF(ISBLANK(H6),"",Zenith(D7,H5,H6)) -> 50.92858041 | K13: Solar Irradiance (W/m2)
C14: N | D14: =IF(ISBLANK(D5),"",(D13-1)*(360/365.25)) -> 222.75154 | G14: Altitude Angle (α) | H14: =IF(ISBLANK(D9),"",(90 - H13)) -> 39.07141959 | K14: =M21 -> 1333.41877 | L14: =IF(ISNA(K14), NA(), SolarConstant(D13)*COS(RADIANS(L11))) -> 853.4013467 | M14: =IF(ISNA(K14), NA(), IF(ISBLANK(M8), "", SolarConstant(D13)*COS(RADIANS(M11)))) -> 1245.4478
G15: Solar Azimuth Angle (ϒs) | H15: =IF(ISBLANK(H6),"",Azimuth(H14,D7,H5,H6)) -> 93.89548288
C18: SUN PATH VARIABLES CALCULATIONS | K18: SOLAR IRRADIANCE CALCULATIONS
K19: Ideal Case | O19: Season-wise | S19: Custom
D20: Time | E20: Solar Time | F20: Hour Angle | G20: Altitude Angle | H20: Azimuth Angle | I20: Zenith Angle | K20: Tilt Angle | L20: Incidence Angle | M20: Solar Irradiance | O20: Tilt Angle | P20: Incidence Angle | Q20: Solar Irradiance | S20: Tilt Angle | T20: Incidence Angle | U20: Solar Irradiance
C21: Custom | D21: =D6 -> 09:00:00 | E21: =LST(D21,$D$10,$D$8,$H$7) -> 08:28:25.136 | F21: =HourAngle(E21) -> 52.895266 | G21: =90 - Zenith($D$7,$H$5,F21) -> 39.07141959 | H21: =Azimuth(G21,$D$7,$H$5,F21) -> 93.89548288 | I21: =IF(G21<0, NA(), 90-G21) -> 50.92858041 | K21: =IF(ISNA(I21), NA(), I21) -> 50.92858041 | L21: =IF(ISNA(K21), NA(), IncidenceAngle($D$7,$H$5,K21,H21,IF(E21>0.5, HourAngle(E21), HourAngleR(E21)))) -> 0 | M21: =IF(ISNA(L21), NA(), SolarConstant($D$13)*COS(RADIANS(L21))) -> 1333.41877 | O21: =IF(ISNA(M21), NA(), BetaAngle($D$7,$D$13)) -> 0.72116 | P21: =IF(ISNA(O21), NA(), IncidenceAngle($D$7,$H$5,O21,H21,IF(E21>0.5, HourAngle(E21), HourAngleR(E21)))) -> 50.20743482 | Q21: =IF(ISNA(P21), NA(), SolarConstant($D$13)*COS(RADIANS(P21))) -> 853.4013467 | S21: =IF(ISNA(Q21), NA(), $M$8) -> 30 | T21: =IF(ISNA(S21), NA(), IncidenceAngle($D$7,$H$5,S21,H21,IF(E21>0.5, HourAngle(E21), HourAngleR(E21)))) -> 20.92864605 | U21: =IF(ISNA(T21), NA(), SolarConstant($D$13)*COS(RADIANS(T21))) -> 1245.4478
C22: Sun Rise | D22: =IF(ISBLANK(D9),"",Sunrise(D7,H5,D10,D8,H7)) -> 06:02:58.074 | E22: =LST(D22,$D$10,$D$8,$H$7) -> 05:31:23.210 | F22: =HourAngle(E22) -> 97.1532917 | G22: =90 - Zenith($D$7,$H$5,F22) -> 0 | H22: =Azimuth(G22,$D$7,$H$5,F22) -> 74.50276601 | I22: 90 | K22: 90 | L22: =IF(ISNA(K22), NA(), IncidenceAngle($D$7,$H$5,K22,H22,IF(E22>0.5, HourAngle(E22), HourAngleR(E22)))) -> 0 | M22: =IF(ISNA(L22), NA(), SolarConstant($D$13)*COS(RADIANS(L22))) -> 1333.41877 | O22: =IF(ISNA(M22), NA(), BetaAngle($D$7,$D$13)) -> 0.72116 | P22: =IF(ISNA(O22), NA(), IncidenceAngle($D$7,$H$5,O22,H22,IF(E22>0.5, HourAngle(E22), HourAngleR(E22)))) -> 89.27885628 | Q22: =IF(ISNA(P22), NA(), SolarConstant($D$13)*COS(RADIANS(P22))) -> 16.78240863 | S22: =IF(ISNA(Q22), NA(), $M$8) -> 30 | T22: =IF(ISNA(S22), NA(), IncidenceAngle($D$7,$H$5,S22,H22,IF(E22>0.5, HourAngle(E22), HourAngleR(E22)))) -> 60 | U22: =IF(ISNA(T22), NA(), SolarConstant($D$13)*COS(RADIANS(T22))) -> 666.7093848
C23: Sun Set | D23: =IF(ISBLANK(D9),"",Sunset(D7,H5,D10,D8,H7)) -> 19:00:11.654 | E23: =LST(D23,$D$10,$D$8,$H$7) -> 18:28:36.790 | F23: =HourAngle(E23) -> -97.1532917 | G23: =90 - Zenith($D$7,$H$5,F23) -> 0 | H23: =Azimuth(G23,$D$7,$H$5,F23) -> 74.50276601 | I23: 90 | K23: 90 | L23: =IF(ISNA(K23), NA(), IncidenceAngle($D$7,$H$5,K23,H23,IF(E23>0.5, HourAngle(E23), HourAngleR(E23)))) -> 0 | M23: =IF(ISNA(L23), NA(), SolarConstant($D$13)*COS(RADIANS(L23))) -> 1333.41877 | O23: 0.72116 | P23: =IF(ISNA(O23), NA(), IncidenceAngle($D$7,$H$5,O23,H23,IF(E23>0.5, HourAngle(E23), HourAngleR(E23)))) -> 89.27885628 | Q23: =IF(ISNA(P23), NA(), SolarConstant($D$13)*COS(RADIANS(P23))) -> 16.78240863 | S23: 30 | T23: =IF(ISNA(S23), NA(), IncidenceAngle($D$7,$H$5,S23,H23,IF(E23>0.5, HourAngle(E23), HourAngleR(E23)))) -> 60 | U23: =IF(ISNA(T23), NA(), SolarConstant($D$13)*COS(RADIANS(T23))) -> 666.7093848
C24: 24 Hour Time Sun Locations | D24: 01:00:00 | E24: =LST(D24,$D$10,$D$8,$H$7) -> 00:28:25.136 | F24: =HourAngle(E24) -> 172.895266 | G24: =90 - Zenith($D$7,$H$5,F24) -> -48.72314786 | H24: =Azimuth(G24,$D$7,$H$5,F24) -> 10.49128037 | L24: =IF(ISNA(K24), NA(), IncidenceAngle($D$7,$H$5,K24,H24,IF(E24>0.5, HourAngle(E24), HourAngleR(E24)))) ->  | M24: =IF(ISNA(L24), NA(), SolarConstant($D$13)*COS(RADIANS(L24))) ->  | P24: =IF(ISNA(O24), NA(), IncidenceAngle($D$7,$H$5,O24,H24,IF(E24>0.5, HourAngle(E24), HourAngleR(E24)))) ->  | Q24: =IF(ISNA(P24), NA(), SolarConstant($D$13)*COS(RADIANS(P24))) ->  | T24: =IF(ISNA(S24), NA(), IncidenceAngle($D$7,$H$5,S24,H24,IF(E24>0.5, HourAngle(E24), HourAngleR(E24)))) ->  | U24: =IF(ISNA(T24), NA(), SolarConstant($D$13)*COS(RADIANS(T24))) -> 
D25: 02:00:00 | E25: =LST(D25,$D$10,$D$8,$H$7) -> 01:28:25.136 | F25: =HourAngle(E25) -> 157.895266 | G25: =90 - Zenith($D$7,$H$5,F25) -> -43.98942523 | H25: =Azimuth(G25,$D$7,$H$5,F25) -> 30.52835514 | L25: =IF(ISNA(K25), NA(), IncidenceAngle($D$7,$H$5,K25,H25,IF(E25>0.5, HourAngle(E25), HourAngleR(E25)))) ->  | M25: =IF(ISNA(L25), NA(), SolarConstant($D$13)*COS(RADIANS(L25))) ->  | P25: =IF(ISNA(O25), NA(), IncidenceAngle($D$7,$H$5,O25,H25,IF(E25>0.5, HourAngle(E25), HourAngleR(E25)))) ->  | Q25: =IF(ISNA(P25), NA(), SolarConstant($D$13)*COS(RADIANS(P25))) ->  | T25: =IF(ISNA(S25), NA(), IncidenceAngle($D$7,$H$5,S25,H25,IF(E25>0.5, HourAngle(E25), HourAngleR(E25)))) ->  | U25: =IF(ISNA(T25), NA(), SolarConstant($D$13)*COS(RADIANS(T25))) -> 
D26: 03:00:00 | E26: =LST(D26,$D$10,$D$8,$H$7) -> 02:28:25.136 | F26: =HourAngle(E26) -> 142.895266 | G26: =90 - Zenith($D$7,$H$5,F26) -> -35.65057942 | H26: =Azimuth(G26,$D$7,$H$5,F26) -> 46.13977997 | L26: =IF(ISNA(K26), NA(), IncidenceAngle($D$7,$H$5,K26,H26,IF(E26>0.5, HourAngle(E26), HourAngleR(E26)))) ->  | M26: =IF(ISNA(L26), NA(), SolarConstant($D$13)*COS(RADIANS(L26))) ->  | P26: =IF(ISNA(O26), NA(), IncidenceAngle($D$7,$H$5,O26,H26,IF(E26>0.5, HourAngle(E26), HourAngleR(E26)))) ->  | Q26: =IF(ISNA(P26), NA(), SolarConstant($D$13)*COS(RADIANS(P26))) ->  | T26: =IF(ISNA(S26), NA(), IncidenceAngle($D$7,$H$5,S26,H26,IF(E26>0.5, HourAngle(E26), HourAngleR(E26)))) ->  | U26: =IF(ISNA(T26), NA(), SolarConstant($D$13)*COS(RADIANS(T26))) -> 
D27: 04:00:00 | E27: =LST(D27,$D$10,$D$8,$H$7) -> 03:28:25.136 | F27: =HourAngle(E27) -> 127.895266 | G27: =90 - Zenith($D$7,$H$5,F27) -> -25.09286682 | H27: =Azimuth(G27,$D$7,$H$5,F27) -> 57.80938596 | L27: =IF(ISNA(K27), NA(), IncidenceAngle($D$7,$H$5,K27,H27,IF(E27>0.5, HourAngle(E27), HourAngleR(E27)))) ->  | M27: =IF(ISNA(L27), NA(), SolarConstant($D$13)*COS(RADIANS(L27))) ->  | P27: =IF(ISNA(O27), NA(), IncidenceAngle($D$7,$H$5,O27,H27,IF(E27>0.5, HourAngle(E27), HourAngleR(E27)))) ->  | Q27: =IF(ISNA(P27), NA(), SolarConstant($D$13)*COS(RADIANS(P27))) ->  | T27: =IF(ISNA(S27), NA(), IncidenceAngle($D$7,$H$5,S27,H27,IF(E27>0.5, HourAngle(E27), HourAngleR(E27)))) ->  | U27: =IF(ISNA(T27), NA(), SolarConstant($D$13)*COS(RADIANS(T27))) -> 
D28: 05:00:00 | E28: =LST(D28,$D$10,$D$8,$H$7) -> 04:28:25.136 | F28: =HourAngle(E28) -> 112.895266 | G28: =90 - Zenith($D$7,$H$5,F28) -> -13.24308138 | H28: =Azimuth(G28,$D$7,$H$5,F28) -> 66.79943767 | L28: =IF(ISNA(K28), NA(), IncidenceAngle($D$7,$H$5,K28,H28,IF(E28>0.5, HourAngle(E28), HourAngleR(E28)))) ->  | M28: =IF(ISNA(L28), NA(), SolarConstant($D$13)*COS(RADIANS(L28))) ->  | P28: =IF(ISNA(O28), NA(), IncidenceAngle($D$7,$H$5,O28,H28,IF(E28>0.5, HourAngle(E28), HourAngleR(E28)))) ->  | Q28: =IF(ISNA(P28), NA(), SolarConstant($D$13)*COS(RADIANS(P28))) ->  | T28: =IF(ISNA(S28), NA(), IncidenceAngle($D$7,$H$5,S28,H28,IF(E28>0.5, HourAngle(E28), HourAngleR(E28)))) ->  | U28: =IF(ISNA(T28), NA(), SolarConstant($D$13)*COS(RADIANS(T28))) -> 
D29: 06:00:00 | E29: =LST(D29,$D$10,$D$8,$H$7) -> 05:28:25.136 | F29: =HourAngle(E29) -> 97.895266 | G29: =90 - Zenith($D$7,$H$5,F29) -> -0.6370411784 | H29: =Azimuth(G29,$D$7,$H$5,F29) -> 74.16593096 | L29: =IF(ISNA(K29), NA(), IncidenceAngle($D$7,$H$5,K29,H29,IF(E29>0.5, HourAngle(E29), HourAngleR(E29)))) ->  | M29: =IF(ISNA(L29), NA(), SolarConstant($D$13)*COS(RADIANS(L29))) ->  | P29: =IF(ISNA(O29), NA(), IncidenceAngle($D$7,$H$5,O29,H29,IF(E29>0.5, HourAngle(E29), HourAngleR(E29)))) ->  | Q29: =IF(ISNA(P29), NA(), SolarConstant($D$13)*COS(RADIANS(P29))) ->  | T29: =IF(ISNA(S29), NA(), IncidenceAngle($D$7,$H$5,S29,H29,IF(E29>0.5, HourAngle(E29), HourAngleR(E29)))) ->  | U29: =IF(ISNA(T29), NA(), SolarConstant($D$13)*COS(RADIANS(T29))) -> 
D30: 07:00:00 | E30: =LST(D30,$D$10,$D$8,$H$7) -> 06:28:25.136 | F30: =HourAngle(E30) -> 82.895266 | G30: =90 - Zenith($D$7,$H$5,F30) -> 12.41278377 | H30: =Azimuth(G30,$D$7,$H$5,F30) -> 80.68483261 | I30: 77.58721623 | K30: 77.58721623 | L30: =IF(ISNA(K30), NA(), IncidenceAngle($D$7,$H$5,K30,H30,IF(E30>0.5, HourAngle(E30), HourAngleR(E30)))) -> 0 | M30: =IF(ISNA(L30), NA(), SolarConstant($D$13)*COS(RADIANS(L30))) -> 1333.41877 | O30: 0.72116 | P30: =IF(ISNA(O30), NA(), IncidenceAngle($D$7,$H$5,O30,H30,IF(E30>0.5, HourAngle(E30), HourAngleR(E30)))) -> 76.86607275 | Q30: =IF(ISNA(P30), NA(), SolarConstant($D$13)*COS(RADIANS(P30))) -> 302.9900802 | S30: 30 | T30: =IF(ISNA(S30), NA(), IncidenceAngle($D$7,$H$5,S30,H30,IF(E30>0.5, HourAngle(E30), HourAngleR(E30)))) -> 47.58722664 | U30: =IF(ISNA(T30), NA(), SolarConstant($D$13)*COS(RADIANS(T30))) -> 899.3469572
D31: 08:00:00 | E31: =LST(D31,$D$10,$D$8,$H$7) -> 07:28:25.136 | F31: =HourAngle(E31) -> 67.895266 | G31: =90 - Zenith($D$7,$H$5,F31) -> 25.70420218 | H31: =Azimuth(G31,$D$7,$H$5,F31) -> 87.00793295 | I31: 64.29579782 | K31: 64.29579782 | L31: =IF(ISNA(K31), NA(), IncidenceAngle($D$7,$H$5,K31,H31,IF(E31>0.5, HourAngle(E31), HourAngleR(E31)))) -> 0 | M31: =IF(ISNA(L31), NA(), SolarConstant($D$13)*COS(RADIANS(L31))) -> 1333.41877 | O31: 0.72116 | P31: =IF(ISNA(O31), NA(), IncidenceAngle($D$7,$H$5,O31,H31,IF(E31>0.5, HourAngle(E31), HourAngleR(E31)))) -> 63.57461387 | Q31: =IF(ISNA(P31), NA(), SolarConstant($D$13)*COS(RADIANS(P31))) -> 593.4140218 | S31: 30 | T31: =IF(ISNA(S31), NA(), IncidenceAngle($D$7,$H$5,S31,H31,IF(E31>0.5, HourAngle(E31), HourAngleR(E31)))) -> 34.29575942 | U31: =IF(ISNA(T31), NA(), SolarConstant($D$13)*COS(RADIANS(T31))) -> 1101.590582
D32: 09:00:00 | E32: =LST(D32,$D$10,$D$8,$H$7) -> 08:28:25.136 | F32: =HourAngle(E32) -> 52.895266 | G32: =90 - Zenith($D$7,$H$5,F32) -> 39.07141959 | H32: =Azimuth(G32,$D$7,$H$5,F32) -> 93.89548288 | I32: 50.92858041 | K32: 50.92858041 | L32: =IF(ISNA(K32), NA(), IncidenceAngle($D$7,$H$5,K32,H32,IF(E32>0.5, HourAngle(E32), HourAngleR(E32)))) -> 0 | M32: =IF(ISNA(L32), NA(), SolarConstant($D$13)*COS(RADIANS(L32))) -> 1333.41877 | O32: 0.72116 | P32: =IF(ISNA(O32), NA(), IncidenceAngle($D$7,$H$5,O32,H32,IF(E32>0.5, HourAngle(E32), HourAngleR(E32)))) -> 50.20743482 | Q32: =IF(ISNA(P32), NA(), SolarConstant($D$13)*COS(RADIANS(P32))) -> 853.4013467 | S32: 30 | T32: =IF(ISNA(S32), NA(), IncidenceAngle($D$7,$H$5,S32,H32,IF(E32>0.5, HourAngle(E32), HourAngleR(E32)))) -> 20.92864605 | U32: =IF(ISNA(T32), NA(), SolarConstant($D$13)*COS(RADIANS(T32))) -> 1245.4478
D33: 10:00:00 | E33: =LST(D33,$D$10,$D$8,$H$7) -> 09:28:25.136 | F33: =HourAngle(E33) -> 37.895266 | G33: =90 - Zenith($D$7,$H$5,F33) -> 52.30230283 | H33: =Azimuth(G33,$D$7,$H$5,F33) -> 102.7011195 | I33: 37.69769717 | K33: 37.69769717 | L33: =IF(ISNA(K33), NA(), IncidenceAngle($D$7,$H$5,K33,H33,IF(E33>0.5, HourAngle(E33), HourAngleR(E33)))) -> 0 | M33: =IF(ISNA(L33), NA(), SolarConstant($D$13)*COS(RADIANS(L33))) -> 1333.41877 | O33: 0.72116 | P33: =IF(ISNA(O33), NA(), IncidenceAngle($D$7,$H$5,O33,H33,IF(E33>0.5, HourAngle(E33), HourAngleR(E33)))) -> 36.97652655 | Q33: =IF(ISNA(P33), NA(), SolarConstant($D$13)*COS(RADIANS(P33))) -> 1065.244253 | S33: 30 | T33: =IF(ISNA(S33), NA(), IncidenceAngle($D$7,$H$5,S33,H33,IF(E33>0.5, HourAngle(E33), HourAngleR(E33)))) -> 7.697519259 | U33: =IF(ISNA(T33), NA(), SolarConstant($D$13)*COS(RADIANS(T33))) -> 1321.403333
D34: 11:00:00 | E34: =LST(D34,$D$10,$D$8,$H$7) -> 10:28:25.136 | F34: =HourAngle(E34) -> 22.895266 | G34: =90 - Zenith($D$7,$H$5,F34) -> 64.90887826 | H34: =Azimuth(G34,$D$7,$H$5,F34) -> 116.9985489 | I34: 25.09112174 | K34: 25.09112174 | L34: =IF(ISNA(K34), NA(), IncidenceAngle($D$7,$H$5,K34,H34,IF(E34>0.5, HourAngle(E34), HourAngleR(E34)))) -> 0 | M34: =IF(ISNA(L34), NA(), SolarConstant($D$13)*COS(RADIANS(L34))) -> 1333.41877 | O34: 0.72116 | P34: =IF(ISNA(O34), NA(), IncidenceAngle($D$7,$H$5,O34,H34,IF(E34>0.5, HourAngle(E34), HourAngleR(E34)))) -> 24.36997736 | Q34: =IF(ISNA(P34), NA(), SolarConstant($D$13)*COS(RADIANS(P34))) -> 1214.611157 | S34: 30 | T34: =IF(ISNA(S34), NA(), IncidenceAngle($D$7,$H$5,S34,H34,IF(E34>0.5, HourAngle(E34), HourAngleR(E34)))) -> 4.908910708 | U34: =IF(ISNA(T34), NA(), SolarConstant($D$13)*COS(RADIANS(T34))) -> 1328.527789
D35: 12:00:00 | E35: =LST(D35,$D$10,$D$8,$H$7) -> 11:28:25.136 | F35: =HourAngle(E35) -> 7.895266001 | G35: =90 - Zenith($D$7,$H$5,F35) -> 74.939634 | H35: =Azimuth(G35,$D$7,$H$5,F35) -> 149.1076526 | I35: 15.060366 | K35: 15.060366 | L35: =IF(ISNA(K35), NA(), IncidenceAngle($D$7,$H$5,K35,H35,IF(E35>0.5, HourAngle(E35), HourAngleR(E35)))) -> 0 | M35: =IF(ISNA(L35), NA(), SolarConstant($D$13)*COS(RADIANS(L35))) -> 1333.41877 | O35: 0.72116 | P35: =IF(ISNA(O35), NA(), IncidenceAngle($D$7,$H$5,O35,H35,IF(E35>0.5, HourAngle(E35), HourAngleR(E35)))) -> 14.33931927 | Q35: =IF(ISNA(P35), NA(), SolarConstant($D$13)*COS(RADIANS(P35))) -> 1291.877441 | S35: 30 | T35: =IF(ISNA(S35), NA(), IncidenceAngle($D$7,$H$5,S35,H35,IF(E35>0.5, HourAngle(E35), HourAngleR(E35)))) -> 14.93962914 | U35: =IF(ISNA(T35), NA(), SolarConstant($D$13)*COS(RADIANS(T35))) -> 1288.346548
D36: 13:00:00 | E36: =LST(D36,$D$10,$D$8,$H$7) -> 12:28:25.136 | F36: =HourAngle(E36) -> -7.104733999 | G36: =90 - Zenith($D$7,$H$5,F36) -> 75.28746759 | H36: =Azimuth(G36,$D$7,$H$5,F36) -> 151.7722921 | I36: 14.71253241 | K36: 14.71253241 | L36: =IF(ISNA(K36), NA(), IncidenceAngle($D$7,$H$5,K36,H36,IF(E36>0.5, HourAngle(E36), HourAngleR(E36)))) -> 0 | M36: =IF(ISNA(L36), NA(), SolarConstant($D$13)*COS(RADIANS(L36))) -> 1333.41877 | O36: 0.72116 | P36: =IF(ISNA(O36), NA(), IncidenceAngle($D$7,$H$5,O36,H36,IF(E36>0.5, HourAngle(E36), HourAngleR(E36)))) -> 13.9914065 | Q36: =IF(ISNA(P36), NA(), SolarConstant($D$13)*COS(RADIANS(P36))) -> 1293.858901 | S36: 30 | T36: =IF(ISNA(S36), NA(), IncidenceAngle($D$7,$H$5,S36,H36,IF(E36>0.5, HourAngle(E36), HourAngleR(E36)))) -> 15.28749211 | U36: =IF(ISNA(T36), NA(), SolarConstant($D$13)*COS(RADIANS(T36))) -> 1286.235746
D37: 14:00:00 | E37: =LST(D37,$D$10,$D$8,$H$7) -> 13:28:25.136 | F37: =HourAngle(E37) -> -22.104734 | G37: =90 - Zenith($D$7,$H$5,F37) -> 65.53398714 | H37: =Azimuth(G37,$D$7,$H$5,F37) -> 118.0622278 | I37: 24.46601286 | K37: 24.46601286 | L37: =IF(ISNA(K37), NA(), IncidenceAngle($D$7,$H$5,K37,H37,IF(E37>0.5, HourAngle(E37), HourAngleR(E37)))) -> 0 | M37: =IF(ISNA(L37), NA(), SolarConstant($D$13)*COS(RADIANS(L37))) -> 1333.41877 | O37: 0.72116 | P37: =IF(ISNA(O37), NA(), IncidenceAngle($D$7,$H$5,O37,H37,IF(E37>0.5, HourAngle(E37), HourAngleR(E37)))) -> 23.74480391 | Q37: =IF(ISNA(P37), NA(), SolarConstant($D$13)*COS(RADIANS(P37))) -> 1220.542204 | S37: 30 | T37: =IF(ISNA(S37), NA(), IncidenceAngle($D$7,$H$5,S37,H37,IF(E37>0.5, HourAngle(E37), HourAngleR(E37)))) -> 5.534087395 | U37: =IF(ISNA(T37), NA(), SolarConstant($D$13)*COS(RADIANS(T37))) -> 1327.203705
D38: 15:00:00 | E38: =LST(D38,$D$10,$D$8,$H$7) -> 14:28:25.136 | F38: =HourAngle(E38) -> -37.104734 | G38: =90 - Zenith($D$7,$H$5,F38) -> 52.98919824 | H38: =Azimuth(G38,$D$7,$H$5,F38) -> 103.2664353 | I38: 37.01080176 | K38: 37.01080176 | L38: =IF(ISNA(K38), NA(), IncidenceAngle($D$7,$H$5,K38,H38,IF(E38>0.5, HourAngle(E38), HourAngleR(E38)))) -> 0 | M38: =IF(ISNA(L38), NA(), SolarConstant($D$13)*COS(RADIANS(L38))) -> 1333.41877 | O38: 0.72116 | P38: =IF(ISNA(O38), NA(), IncidenceAngle($D$7,$H$5,O38,H38,IF(E38>0.5, HourAngle(E38), HourAngleR(E38)))) -> 36.28967045 | Q38: =IF(ISNA(P38), NA(), SolarConstant($D$13)*COS(RADIANS(P38))) -> 1074.782198 | S38: 30 | T38: =IF(ISNA(S38), NA(), IncidenceAngle($D$7,$H$5,S38,H38,IF(E38>0.5, HourAngle(E38), HourAngleR(E38)))) -> 7.01087613 | U38: =IF(ISNA(T38), NA(), SolarConstant($D$13)*COS(RADIANS(T38))) -> 1323.448797
D39: 16:00:00 | E39: =LST(D39,$D$10,$D$8,$H$7) -> 15:28:25.136 | F39: =HourAngle(E39) -> -52.104734 | G39: =90 - Zenith($D$7,$H$5,F39) -> 39.77453589 | H39: =Azimuth(G39,$D$7,$H$5,F39) -> 94.29468764 | I39: 50.22546411 | K39: 50.22546411 | L39: =IF(ISNA(K39), NA(), IncidenceAngle($D$7,$H$5,K39,H39,IF(E39>0.5, HourAngle(E39), HourAngleR(E39)))) -> 0 | M39: =IF(ISNA(L39), NA(), SolarConstant($D$13)*COS(RADIANS(L39))) -> 1333.41877 | O39: 0.72116 | P39: =IF(ISNA(O39), NA(), IncidenceAngle($D$7,$H$5,O39,H39,IF(E39>0.5, HourAngle(E39), HourAngleR(E39)))) -> 49.50429839 | Q39: =IF(ISNA(P39), NA(), SolarConstant($D$13)*COS(RADIANS(P39))) -> 865.9101482 | S39: 30 | T39: =IF(ISNA(S39), NA(), IncidenceAngle($D$7,$H$5,S39,H39,IF(E39>0.5, HourAngle(E39), HourAngleR(E39)))) -> 20.22554172 | U39: =IF(ISNA(T39), NA(), SolarConstant($D$13)*COS(RADIANS(T39))) -> 1251.198835
D40: 17:00:00 | E40: =LST(D40,$D$10,$D$8,$H$7) -> 16:28:25.136 | F40: =HourAngle(E40) -> -67.104734 | G40: =90 - Zenith($D$7,$H$5,F40) -> 26.40826349 | H40: =Azimuth(G40,$D$7,$H$5,F40) -> 87.34878699 | I40: 63.59173651 | K40: 63.59173651 | L40: =IF(ISNA(K40), NA(), IncidenceAngle($D$7,$H$5,K40,H40,IF(E40>0.5, HourAngle(E40), HourAngleR(E40)))) -> 0 | M40: =IF(ISNA(L40), NA(), SolarConstant($D$13)*COS(RADIANS(L40))) -> 1333.41877 | O40: 0.72116 | P40: =IF(ISNA(O40), NA(), IncidenceAngle($D$7,$H$5,O40,H40,IF(E40>0.5, HourAngle(E40), HourAngleR(E40)))) -> 62.87057678 | Q40: =IF(ISNA(P40), NA(), SolarConstant($D$13)*COS(RADIANS(P40))) -> 608.0416258 | S40: 30 | T40: =IF(ISNA(S40), NA(), IncidenceAngle($D$7,$H$5,S40,H40,IF(E40>0.5, HourAngle(E40), HourAngleR(E40)))) -> 33.59174117 | U40: =IF(ISNA(T40), NA(), SolarConstant($D$13)*COS(RADIANS(T40))) -> 1110.739168
D41: 18:00:00 | E41: =LST(D41,$D$10,$D$8,$H$7) -> 17:28:25.136 | F41: =HourAngle(E41) -> -82.104734 | G41: =90 - Zenith($D$7,$H$5,F41) -> 13.10873222 | H41: =Azimuth(G41,$D$7,$H$5,F41) -> 81.01726963 | I41: 76.89126778 | K41: 76.89126778 | L41: =IF(ISNA(K41), NA(), IncidenceAngle($D$7,$H$5,K41,H41,IF(E41>0.5, HourAngle(E41), HourAngleR(E41)))) -> 0 | M41: =IF(ISNA(L41), NA(), SolarConstant($D$13)*COS(RADIANS(L41))) -> 1333.41877 | O41: 0.72116 | P41: =IF(ISNA(O41), NA(), IncidenceAngle($D$7,$H$5,O41,H41,IF(E41>0.5, HourAngle(E41), HourAngleR(E41)))) -> 76.17011268 | Q41: =IF(ISNA(P41), NA(), SolarConstant($D$13)*COS(RADIANS(P41))) -> 318.7404227 | S41: 30 | T41: =IF(ISNA(S41), NA(), IncidenceAngle($D$7,$H$5,S41,H41,IF(E41>0.5, HourAngle(E41), HourAngleR(E41)))) -> 46.89127146 | U41: =IF(ISNA(T41), NA(), SolarConstant($D$13)*COS(RADIANS(T41))) -> 911.2383858
D42: 19:00:00 | E42: =LST(D42,$D$10,$D$8,$H$7) -> 18:28:25.136 | F42: =HourAngle(E42) -> -97.104734 | G42: =90 - Zenith($D$7,$H$5,F42) -> 0.04172690127 | H42: =Azimuth(G42,$D$7,$H$5,F42) -> 74.52474036 | I42: 89.9582731 | K42: 89.9582731 | L42: =IF(ISNA(K42), NA(), IncidenceAngle($D$7,$H$5,K42,H42,IF(E42>0.5, HourAngle(E42), HourAngleR(E42)))) -> 0 | M42: =IF(ISNA(L42), NA(), SolarConstant($D$13)*COS(RADIANS(L42))) -> 1333.41877 | O42: 0.72116 | P42: =IF(ISNA(O42), NA(), IncidenceAngle($D$7,$H$5,O42,H42,IF(E42>0.5, HourAngle(E42), HourAngleR(E42)))) -> 89.23714145 | Q42: =IF(ISNA(P42), NA(), SolarConstant($D$13)*COS(RADIANS(P42))) -> 17.7531375 | S42: 30 | T42: =IF(ISNA(S42), NA(), IncidenceAngle($D$7,$H$5,S42,H42,IF(E42>0.5, HourAngle(E42), HourAngleR(E42)))) -> 59.95824459 | U42: =IF(ISNA(T42), NA(), SolarConstant($D$13)*COS(RADIANS(T42))) -> 667.550772
D43: 20:00:00 | E43: =LST(D43,$D$10,$D$8,$H$7) -> 19:28:25.136 | F43: =HourAngle(E43) -> -112.104734 | G43: =90 - Zenith($D$7,$H$5,F43) -> -12.59415381 | H43: =Azimuth(G43,$D$7,$H$5,F43) -> 67.22041057 | L43: =IF(ISNA(K43), NA(), IncidenceAngle($D$7,$H$5,K43,H43,IF(E43>0.5, HourAngle(E43), HourAngleR(E43)))) ->  | M43: =IF(ISNA(L43), NA(), SolarConstant($D$13)*COS(RADIANS(L43))) ->  | P43: =IF(ISNA(O43), NA(), IncidenceAngle($D$7,$H$5,O43,H43,IF(E43>0.5, HourAngle(E43), HourAngleR(E43)))) ->  | Q43: =IF(ISNA(P43), NA(), SolarConstant($D$13)*COS(RADIANS(P43))) ->  | T43: =IF(ISNA(S43), NA(), IncidenceAngle($D$7,$H$5,S43,H43,IF(E43>0.5, HourAngle(E43), HourAngleR(E43)))) ->  | U43: =IF(ISNA(T43), NA(), SolarConstant($D$13)*COS(RADIANS(T43))) -> 
D44: 21:00:00 | E44: =LST(D44,$D$10,$D$8,$H$7) -> 20:28:25.136 | F44: =HourAngle(E44) -> -127.104734 | G44: =90 - Zenith($D$7,$H$5,F44) -> -24.4945769 | H44: =Azimuth(G44,$D$7,$H$5,F44) -> 58.33940468 | L44: =IF(ISNA(K44), NA(), IncidenceAngle($D$7,$H$5,K44,H44,IF(E44>0.5, HourAngle(E44), HourAngleR(E44)))) ->  | M44: =IF(ISNA(L44), NA(), SolarConstant($D$13)*COS(RADIANS(L44))) ->  | P44: =IF(ISNA(O44), NA(), IncidenceAngle($D$7,$H$5,O44,H44,IF(E44>0.5, HourAngle(E44), HourAngleR(E44)))) ->  | Q44: =IF(ISNA(P44), NA(), SolarConstant($D$13)*COS(RADIANS(P44))) ->  | T44: =IF(ISNA(S44), NA(), IncidenceAngle($D$7,$H$5,S44,H44,IF(E44>0.5, HourAngle(E44), HourAngleR(E44)))) ->  | U44: =IF(ISNA(T44), NA(), SolarConstant($D$13)*COS(RADIANS(T44))) -> 
D45: 22:00:00 | E45: =LST(D45,$D$10,$D$8,$H$7) -> 21:28:25.136 | F45: =HourAngle(E45) -> -142.104734 | G45: =90 - Zenith($D$7,$H$5,F45) -> -35.13932143 | H45: =Azimuth(G45,$D$7,$H$5,F45) -> 46.84243457 | L45: =IF(ISNA(K45), NA(), IncidenceAngle($D$7,$H$5,K45,H45,IF(E45>0.5, HourAngle(E45), HourAngleR(E45)))) ->  | M45: =IF(ISNA(L45), NA(), SolarConstant($D$13)*COS(RADIANS(L45))) ->  | P45: =IF(ISNA(O45), NA(), IncidenceAngle($D$7,$H$5,O45,H45,IF(E45>0.5, HourAngle(E45), HourAngleR(E45)))) ->  | Q45: =IF(ISNA(P45), NA(), SolarConstant($D$13)*COS(RADIANS(P45))) ->  | T45: =IF(ISNA(S45), NA(), IncidenceAngle($D$7,$H$5,S45,H45,IF(E45>0.5, HourAngle(E45), HourAngleR(E45)))) ->  | U45: =IF(ISNA(T45), NA(), SolarConstant($D$13)*COS(RADIANS(T45))) -> 
D46: 23:00:00 | E46: =LST(D46,$D$10,$D$8,$H$7) -> 22:28:25.136 | F46: =HourAngle(E46) -> -157.104734 | G46: =90 - Zenith($D$7,$H$5,F46) -> -43.6263895 | H46: =Azimuth(G46,$D$7,$H$5,F46) -> 31.46580056 | L46: =IF(ISNA(K46), NA(), IncidenceAngle($D$7,$H$5,K46,H46,IF(E46>0.5, HourAngle(E46), HourAngleR(E46)))) ->  | M46: =IF(ISNA(L46), NA(), SolarConstant($D$13)*COS(RADIANS(L46))) ->  | P46: =IF(ISNA(O46), NA(), IncidenceAngle($D$7,$H$5,O46,H46,IF(E46>0.5, HourAngle(E46), HourAngleR(E46)))) ->  | Q46: =IF(ISNA(P46), NA(), SolarConstant($D$13)*COS(RADIANS(P46))) ->  | T46: =IF(ISNA(S46), NA(), IncidenceAngle($D$7,$H$5,S46,H46,IF(E46>0.5, HourAngle(E46), HourAngleR(E46)))) ->  | U46: =IF(ISNA(T46), NA(), SolarConstant($D$13)*COS(RADIANS(T46))) -> 
D47: 1 | E47: =LST(D47,$D$10,$D$8,$H$7) -> 23:28:25.136 | F47: =HourAngle(E47) -> -172.104734 | G47: =90 - Zenith($D$7,$H$5,F47) -> -48.58787408 | H47: =Azimuth(G47,$D$7,$H$5,F47) -> 11.63536267 | L47: =IF(ISNA(K47), NA(), IncidenceAngle($D$7,$H$5,K47,H47,IF(E47>0.5, HourAngle(E47), HourAngleR(E47)))) ->  | M47: =IF(ISNA(L47), NA(), SolarConstant($D$13)*COS(RADIANS(L47))) ->  | P47: =IF(ISNA(O47), NA(), IncidenceAngle($D$7,$H$5,O47,H47,IF(E47>0.5, HourAngle(E47), HourAngleR(E47)))) ->  | Q47: =IF(ISNA(P47), NA(), SolarConstant($D$13)*COS(RADIANS(P47))) ->  | T47: =IF(ISNA(S47), NA(), IncidenceAngle($D$7,$H$5,S47,H47,IF(E47>0.5, HourAngle(E47), HourAngleR(E47)))) ->  | U47: =IF(ISNA(T47), NA(), SolarConstant($D$13)*COS(RADIANS(T47))) -> 

Sheet Custom (hidden)
C2: SUN PATH VARIABLES CALCULATIONS
C4: Data | G4: Basic Variables
C5: Date : | D5: ='Sun Path'!B5 -> 2018-08-15 | G5: Declination Angle (δ) | H5: =IF(ISBLANK('Sun Path'!B5),"",Declination(D13)) -> 13.78356417
C6: Time : | D6: ='Sun Path'!B6 -> 12:00:00 | G6: Hour Angle (ω) | H6: =IF(ISBLANK('Sun Path'!B9),"",HourAngle(H8)) -> 7.902566001
C7: Latitude (φ) : | D7: ='Sun Path'!B7 -> 26.76 | G7: Equation of Time | H7: =IF(ISBLANK('Sun Path'!B5),"",Eot(D14)) -> -4.730264003
C8: Longitude : | D8: ='Sun Path'!B8 -> 75.78 | G8: Local Solar Time | H8: =IF(ISBLANK('Sun Path'!B9),"",LST(D6,D10,D8,H7)) -> 11:28:23.384
C9: Time Zone : | D9: ='Sun Path'!B9 -> 5.5
C10: Std. Time Longt : | D10: =15*D9 -> 82.5
C12: Day Number Calculation | G12: Derived Variables
C13: nth Day | D13: =IF(ISBLANK('Sun Path'!B5),"",'Sun Path'!B5-DATE(YEAR('Sun Path'!B5),1,0)) -> 227 | G13: Zenith Angle (θz) | H13: =IF(H6="","",Zenith(D7,H5,H6)) -> 14.93316313
C14: N | D14: =IF(ISBLANK('Sun Path'!B5),"",(D13-1)*(360/365.25)) -> 222.75154 | G14: Altitude Angle (α) | H14: =IF(ISBLANK('Sun Path'!B9),"",(90 - H13)) -> 75.06683687
G15: Solar Azimuth Angle (ϒs) | H15: =IF(H6="","",Azimuth(H14,D7,H5,H6)) -> 148.7900888
C18: SUN PATH DIAGRAM CALCULATIONS
D20: Time | E20: Solar Time | F20: Hour Angle | G20: Altitude Angle | H20: Azimuth Angle
C21: Custom | D21: ='Sun Path'!B6 -> 12:00:00 | E21: =LST(D21,$D$10,$D$8,$H$7) -> 11:28:23.384 | F21: =HourAngle(E21) -> 7.902566001 | G21: =90 - Zenith($D$7,$H$5,F21) -> 75.06683687 | H21: =IF(F21<0,360-Azimuth(G21,$D$7,$H$5,F21),Azimuth(G21,$D$7,$H$5,F21)) -> 148.7900888
C22: Sun Rise | D22: =IF(ISBLANK('Sun Path'!B9),"",Sunrise(D7,H5,D10,D8,H7)) -> 06:03:11.183 | E22: =LST(D22,$D$10,$D$8,$H$7) -> 05:31:34.567 | F22: =HourAngle(E22) -> 97.1059694 | G22: =90 - Zenith($D$7,$H$5,F22) -> 0 | H22: =IF(F22<0,360-Azimuth(G22,$D$7,$H$5,F22),Azimuth(G22,$D$7,$H$5,F22)) -> 74.52412927
C23: Sun Set | D23: =IF(ISBLANK('Sun Path'!B9),"",Sunset(D7,H5,D10,D8,H7)) -> 19:00:02.048 | E23: =LST(D23,$D$10,$D$8,$H$7) -> 18:28:25.433 | F23: =HourAngle(E23) -> -97.1059694 | G23: =90 - Zenith($D$7,$H$5,F23) -> 0 | H23: =IF(F23<0,360-Azimuth(G23,$D$7,$H$5,F23),Azimuth(G23,$D$7,$H$5,F23)) -> 285.4758707
C24: 24 Hour Time Sun Locations | D24: 01:00:00 | E24: =LST(D24,$D$10,$D$8,$H$7) -> 00:28:23.384 | F24: =HourAngle(E24) -> 172.902566 | G24: =90 - Zenith($D$7,$H$5,F24) -> -48.87418228 | H24: =IF(F24<0,360-Azimuth(G24,$D$7,$H$5,F24),Azimuth(G24,$D$7,$H$5,F24)) -> 10.51239769
D25: 02:00:00 | E25: =LST(D25,$D$10,$D$8,$H$7) -> 01:28:23.384 | F25: =HourAngle(E25) -> 157.902566 | G25: =90 - Zenith($D$7,$H$5,F25) -> -44.1239665 | H25: =IF(F25<0,360-Azimuth(G25,$D$7,$H$5,F25),Azimuth(G25,$D$7,$H$5,F25)) -> 30.59461172
D26: 03:00:00 | E26: =LST(D26,$D$10,$D$8,$H$7) -> 02:28:23.384 | F26: =HourAngle(E26) -> 142.902566 | G26: =90 - Zenith($D$7,$H$5,F26) -> -35.76080763 | H26: =IF(F26<0,360-Azimuth(G26,$D$7,$H$5,F26),Azimuth(G26,$D$7,$H$5,F26)) -> 46.21226791
D27: 04:00:00 | E27: =LST(D27,$D$10,$D$8,$H$7) -> 03:28:23.384 | F27: =HourAngle(E27) -> 127.902566 | G27: =90 - Zenith($D$7,$H$5,F27) -> -25.17950767 | H27: =IF(F27<0,360-Azimuth(G27,$D$7,$H$5,F27),Azimuth(G27,$D$7,$H$5,F27)) -> 57.8649968
D28: 05:00:00 | E28: =LST(D28,$D$10,$D$8,$H$7) -> 04:28:23.384 | F28: =HourAngle(E28) -> 112.902566 | G28: =90 - Zenith($D$7,$H$5,F28) -> -13.30907159 | H28: =IF(F28<0,360-Azimuth(G28,$D$7,$H$5,F28),Azimuth(G28,$D$7,$H$5,F28)) -> 66.82859138
D29: 06:00:00 | E29: =LST(D29,$D$10,$D$8,$H$7) -> 05:28:23.384 | F29: =HourAngle(E29) -> 97.902566 | G29: =90 - Zenith($D$7,$H$5,F29) -> -0.6848925928 | H29: =IF(F29<0,360-Azimuth(G29,$D$7,$H$5,F29),Azimuth(G29,$D$7,$H$5,F29)) -> 74.16430639
D30: 07:00:00 | E30: =LST(D30,$D$10,$D$8,$H$7) -> 06:28:23.384 | F30: =HourAngle(E30) -> 82.902566 | G30: =90 - Zenith($D$7,$H$5,F30) -> 12.38164055 | H30: =IF(F30<0,360-Azimuth(G30,$D$7,$H$5,F30),Azimuth(G30,$D$7,$H$5,F30)) -> 80.6487132
D31: 08:00:00 | E31: =LST(D31,$D$10,$D$8,$H$7) -> 07:28:23.384 | F31: =HourAngle(E31) -> 67.902566 | G31: =90 - Zenith($D$7,$H$5,F31) -> 25.68964113 | H31: =IF(F31<0,360-Azimuth(G31,$D$7,$H$5,F31),Azimuth(G31,$D$7,$H$5,F31)) -> 86.93157053
D32: 09:00:00 | E32: =LST(D32,$D$10,$D$8,$H$7) -> 08:28:23.384 | F32: =HourAngle(E32) -> 52.902566 | G32: =90 - Zenith($D$7,$H$5,F32) -> 39.07510524 | H32: =IF(F32<0,360-Azimuth(G32,$D$7,$H$5,F32),Azimuth(G32,$D$7,$H$5,F32)) -> 93.76837636
D33: 10:00:00 | E33: =LST(D33,$D$10,$D$8,$H$7) -> 09:28:23.384 | F33: =HourAngle(E33) -> 37.902566 | G33: =90 - Zenith($D$7,$H$5,F33) -> 52.32919697 | H33: =IF(F33<0,360-Azimuth(G33,$D$7,$H$5,F33),Azimuth(G33,$D$7,$H$5,F33)) -> 102.5034425
D34: 11:00:00 | E34: =LST(D34,$D$10,$D$8,$H$7) -> 10:28:23.384 | F34: =HourAngle(E34) -> 22.902566 | G34: =90 - Zenith($D$7,$H$5,F34) -> 64.97189538 | H34: =IF(F34<0,360-Azimuth(G34,$D$7,$H$5,F34),Azimuth(G34,$D$7,$H$5,F34)) -> 116.6981585
D35: 12:00:00 | E35: =LST(D35,$D$10,$D$8,$H$7) -> 11:28:23.384 | F35: =HourAngle(E35) -> 7.902566001 | G35: =90 - Zenith($D$7,$H$5,F35) -> 75.06683687 | H35: =IF(F35<0,360-Azimuth(G35,$D$7,$H$5,F35),Azimuth(G35,$D$7,$H$5,F35)) -> 148.7900888
D36: 13:00:00 | E36: =LST(D36,$D$10,$D$8,$H$7) -> 12:28:23.384 | F36: =HourAngle(E36) -> -7.097433999 | G36: =90 - Zenith($D$7,$H$5,F36) -> 75.42467854 | H36: =IF(F36<0,360-Azimuth(G36,$D$7,$H$5,F36),Azimuth(G36,$D$7,$H$5,F36)) -> 208.4794617
D37: 14:00:00 | E37: =LST(D37,$D$10,$D$8,$H$7) -> 13:28:23.384 | F37: =HourAngle(E37) -> -22.097434 | G37: =90 - Zenith($D$7,$H$5,F37) -> 65.61110022 | H37: =IF(F37<0,360-Azimuth(G37,$D$7,$H$5,F37),Azimuth(G37,$D$7,$H$5,F37)) -> 242.2242457
D38: 15:00:00 | E38: =LST(D38,$D$10,$D$8,$H$7) -> 14:28:23.384 | F38: =HourAngle(E38) -> -37.097434 | G38: =90 - Zenith($D$7,$H$5,F38) -> 53.03026524 | H38: =IF(F38<0,360-Azimuth(G38,$D$7,$H$5,F38),Azimuth(G38,$D$7,$H$5,F38)) -> 256.9252906
D39: 16:00:00 | E39: =LST(D39,$D$10,$D$8,$H$7) -> 15:28:23.384 | F39: =HourAngle(E39) -> -52.097434 | G39: =90 - Zenith($D$7,$H$5,F39) -> 39.79228166 | H39: =IF(F39<0,360-Azimuth(G39,$D$7,$H$5,F39),Azimuth(G39,$D$7,$H$5,F39)) -> 265.8281705
D40: 17:00:00 | E40: =LST(D40,$D$10,$D$8,$H$7) -> 16:28:23.384 | F40: =HourAngle(E40) -> -67.097434 | G40: =90 - Zenith($D$7,$H$5,F40) -> 26.40762448 | H40: =IF(F40<0,360-Azimuth(G40,$D$7,$H$5,F40),Azimuth(G40,$D$7,$H$5,F40)) -> 272.7236643
D41: 18:00:00 | E41: =LST(D41,$D$10,$D$8,$H$7) -> 17:28:23.384 | F41: =HourAngle(E41) -> -82.097434 | G41: =90 - Zenith($D$7,$H$5,F41) -> 13.0913286 | H41: =IF(F41<0,360-Azimuth(G41,$D$7,$H$5,F41),Azimuth(G41,$D$7,$H$5,F41)) -> 279.0147001
D42: 19:00:00 | E42: =LST(D42,$D$10,$D$8,$H$7) -> 18:28:23.384 | F42: =HourAngle(E42) -> -97.097434 | G42: =90 - Zenith($D$7,$H$5,F42) -> 0.007345006587 | H42: =IF(F42<0,360-Azimuth(G42,$D$7,$H$5,F42),Azimuth(G42,$D$7,$H$5,F42)) -> 285.4720278
D43: 20:00:00 | E43: =LST(D43,$D$10,$D$8,$H$7) -> 19:28:23.384 | F43: =HourAngle(E43) -> -112.097434 | G43: =90 - Zenith($D$7,$H$5,F43) -> -12.64711134 | H43: =IF(F43<0,360-Azimuth(G43,$D$7,$H$5,F43),Azimuth(G43,$D$7,$H$5,F43)) -> 292.744264
D44: 21:00:00 | E44: =LST(D44,$D$10,$D$8,$H$7) -> 20:28:23.384 | F44: =HourAngle(E44) -> -127.097434 | G44: =90 - Zenith($D$7,$H$5,F44) -> -24.56895081 | H44: =IF(F44<0,360-Azimuth(G44,$D$7,$H$5,F44),Azimuth(G44,$D$7,$H$5,F44)) -> 301.5965173
D45: 22:00:00 | E45: =LST(D45,$D$10,$D$8,$H$7) -> 21:28:23.384 | F45: =HourAngle(E45) -> -142.097434 | G45: =90 - Zenith($D$7,$H$5,F45) -> -35.23872683 | H45: =IF(F45<0,360-Azimuth(G45,$D$7,$H$5,F45),Azimuth(G45,$D$7,$H$5,F45)) -> 313.0726848
D46: 23:00:00 | E46: =LST(D46,$D$10,$D$8,$H$7) -> 22:28:23.384 | F46: =HourAngle(E46) -> -157.097434 | G46: =90 - Zenith($D$7,$H$5,F46) -> -43.75291636 | H46: =IF(F46<0,360-Azimuth(G46,$D$7,$H$5,F46),Azimuth(G46,$D$7,$H$5,F46)) -> 328.4495137
D47: 1 | E47: =LST(D47,$D$10,$D$8,$H$7) -> 23:28:23.384 | F47: =HourAngle(E47) -> -172.097434 | G47: =90 - Zenith($D$7,$H$5,F47) -> -48.73581394 | H47: =IF(F47<0,360-Azimuth(G47,$D$7,$H$5,F47),Azimuth(G47,$D$7,$H$5,F47)) -> 348.319083
C50: Sun Path Graph Positions Calculations (Polar to Cartesian Co-ordinates)
D52: Time | E52: Radius | F52: Theta | G52: Value X | H52: Value Y
C53: Custom | D53: =D21 -> 12:00:00 | E53: =90-G21 -> 14.93316313 | F53: =90-H21 -> -58.79008878 | G53: =E53*COS(RADIANS(F53)) -> 7.737991291 | H53: =IF(Calculations!$AJ$5=TRUE,E53*SIN(RADIANS(F53)), NA()) -> -12.77195568
C54: Sun Rise | D54: =D22 -> 06:03:11.183 | E54: 90 | F54: 15.47587073 | G54: 86.73686201 | H54: =IF(Calculations!$AJ$5=TRUE,E54*SIN(RADIANS(F54)), NA()) -> 24.01492803
C55: Sun Set | D55: =D23 -> 19:00:02.048 | E55: 90 | F55: -195.4758707 | G55: -86.73686201 | H55: =IF(Calculations!$AJ$5=TRUE,E55*SIN(RADIANS(F55)), NA()) -> 24.01492803
C56: 24 Hour Time Sun Locations | D56: 01:00:00 | E56: 138.8741823 | F56: 79.48760231 | G56: =IF(OR(HOUR(D56)<HOUR($D$54), HOUR(D56)>HOUR($D$55)+1), NA(), E56*COS(RADIANS(F56))) ->  | H56: =IF(Calculations!$AJ$5=TRUE,IF(OR(HOUR(D56)<HOUR($D$54), HOUR(D56)>HOUR($D$55)+1), NA(), E56*SIN(RADIANS(F56))), NA()) -> 
D57: 02:00:00 | E57: 134.1239665 | F57: 59.40538828 | G57: =IF(OR(HOUR(D57)<HOUR($D$54), HOUR(D57)>HOUR($D$55)+1), NA(), E57*COS(RADIANS(F57))) ->  | H57: =IF(Calculations!$AJ$5=TRUE,IF(OR(HOUR(D57)<HOUR($D$54), HOUR(D57)>HOUR($D$55)+1), NA(), E57*SIN(RADIANS(F57))), NA()) -> 
D58: 03:00:00 | E58: 125.7608076 | F58: 43.78773209 | H58: =IF(Calculations!$AJ$5=TRUE,IF(OR(HOUR(D58)<HOUR($D$54), HOUR(D58)>HOUR($D$55)+1), NA(), E58*SIN(RADIANS(F58))), NA()) -> 
D59: 04:00:00 | E59: 115.1795077 | F59: 32.1350032 | H59: =IF(Calculations!$AJ$5=TRUE,IF(OR(HOUR(D59)<HOUR($D$54), HOUR(D59)>HOUR($D$55)+1), NA(), E59*SIN(RADIANS(F59))), NA()) -> 
D60: 05:00:00 | E60: 103.3090716 | F60: 23.17140862 | H60: =IF(Calculations!$AJ$5=TRUE,IF(OR(HOUR(D60)<HOUR($D$54), HOUR(D60)>HOUR($D$55)+1), NA(), E60*SIN(RADIANS(F60))), NA()) -> 
D61: 06:00:00 | E61: 90.68489259 | F61: 15.83569361 | G61: 87.24323625 | H61: =IF(Calculations!$AJ$5=TRUE,IF(OR(HOUR(D61)<HOUR($D$54), HOUR(D61)>HOUR($D$55)+1), NA(), E61*SIN(RADIANS(F61))), NA()) -> 24.74605977
D62: 07:00:00 | E62: 77.61835945 | F62: 9.351286796 | G62: 76.58686313 | H62: =IF(Calculations!$AJ$5=TRUE,IF(OR(HOUR(D62)<HOUR($D$54), HOUR(D62)>HOUR($D$55)+1), NA(), E62*SIN(RADIANS(F62))), NA()) -> 12.61198322
D63: 08:00:00 | E63: 64.31035887 | F63: 3.068429469 | G63: 64.21815818 | H63: =IF(Calculations!$AJ$5=TRUE,IF(OR(HOUR(D63)<HOUR($D$54), HOUR(D63)>HOUR($D$55)+1), NA(), E63*SIN(RADIANS(F63))), NA()) -> 3.442443566
D64: 09:00:00 | E64: 50.92489476 | F64: -3.768376364 | G64: 50.8147898 | H64: =IF(Calculations!$AJ$5=TRUE,IF(OR(HOUR(D64)<HOUR($D$54), HOUR(D64)>HOUR($D$55)+1), NA(), E64*SIN(RADIANS(F64))), NA()) -> -3.346945374
D65: 10:00:00 | E65: 37.67080303 | F65: -12.50344253 | G65: 36.77736463 | H65: =IF(Calculations!$AJ$5=TRUE,IF(OR(HOUR(D65)<HOUR($D$54), HOUR(D65)>HOUR($D$55)+1), NA(), E65*SIN(RADIANS(F65))), NA()) -> -8.155663788
D66: 11:00:00 | E66: 25.02810462 | F66: -26.69815855 | G66: 22.35975399 | H66: =IF(Calculations!$AJ$5=TRUE,IF(OR(HOUR(D66)<HOUR($D$54), HOUR(D66)>HOUR($D$55)+1), NA(), E66*SIN(RADIANS(F66))), NA()) -> -11.24488428
D67: 12:00:00 | E67: 14.93316313 | F67: -58.79008878 | G67: 7.737991291 | H67: =IF(Calculations!$AJ$5=TRUE,IF(OR(HOUR(D67)<HOUR($D$54), HOUR(D67)>HOUR($D$55)+1), NA(), E67*SIN(RADIANS(F67))), NA()) -> -12.77195568
D68: 13:00:00 | E68: 14.57532146 | F68: -118.4794617 | G68: -6.950150339 | H68: =IF(Calculations!$AJ$5=TRUE,IF(OR(HOUR(D68)<HOUR($D$54), HOUR(D68)>HOUR($D$55)+1), NA(), E68*SIN(RADIANS(F68))), NA()) -> -12.81153409
D69: 14:00:00 | E69: 24.38889978 | F69: -152.2242457 | G69: -21.5787682 | H69: =IF(Calculations!$AJ$5=TRUE,IF(OR(HOUR(D69)<HOUR($D$54), HOUR(D69)>HOUR($D$55)+1), NA(), E69*SIN(RADIANS(F69))), NA()) -> -11.36552662
D70: 15:00:00 | E70: 36.96973476 | F70: -166.9252906 | G70: -36.0113283 | H70: =IF(Calculations!$AJ$5=TRUE,IF(OR(HOUR(D70)<HOUR($D$54), HOUR(D70)>HOUR($D$55)+1), NA(), E70*SIN(RADIANS(F70))), NA()) -> -8.363343958
D71: 16:00:00 | E71: 50.20771834 | F71: -175.8281705 | G71: -50.07468624 | H71: =IF(Calculations!$AJ$5=TRUE,IF(OR(HOUR(D71)<HOUR($D$54), HOUR(D71)>HOUR($D$55)+1), NA(), E71*SIN(RADIANS(F71))), NA()) -> -3.652503104
D72: 17:00:00 | E72: 63.59237552 | F72: -182.7236643 | G72: -63.52053737 | H72: =IF(Calculations!$AJ$5=TRUE,IF(OR(HOUR(D72)<HOUR($D$54), HOUR(D72)>HOUR($D$55)+1), NA(), E72*SIN(RADIANS(F72))), NA()) -> 3.021846627
D73: 18:00:00 | E73: 76.9086714 | F73: -189.0147001 | G73: -75.95870875 | H73: =IF(Calculations!$AJ$5=TRUE,IF(OR(HOUR(D73)<HOUR($D$54), HOUR(D73)>HOUR($D$55)+1), NA(), E73*SIN(RADIANS(F73))), NA()) -> 12.05065566
D74: 19:00:00 | E74: 89.99265499 | F74: -195.4720278 | G74: -86.73139373 | H74: =IF(Calculations!$AJ$5=TRUE,IF(OR(HOUR(D74)<HOUR($D$54), HOUR(D74)>HOUR($D$55)+1), NA(), E74*SIN(RADIANS(F74))), NA()) -> 24.0071509
D75: 20:00:00 | E75: 102.6471113 | F75: -202.744264 | G75: -94.66523925 | H75: =IF(Calculations!$AJ$5=TRUE,IF(OR(HOUR(D75)<HOUR($D$54), HOUR(D75)>HOUR($D$55)+1), NA(), E75*SIN(RADIANS(F75))), NA()) -> 39.68528624
D76: 21:00:00 | E76: 114.5689508 | F76: -211.5965173 | H76: =IF(Calculations!$AJ$5=TRUE,IF(OR(HOUR(D76)<HOUR($D$54), HOUR(D76)>HOUR($D$55)+1), NA(), E76*SIN(RADIANS(F76))), NA()) -> 
D77: 22:00:00 | E77: 125.2387268 | F77: -223.0726848 | H77: =IF(Calculations!$AJ$5=TRUE,IF(OR(HOUR(D77)<HOUR($D$54), HOUR(D77)>HOUR($D$55)+1), NA(), E77*SIN(RADIANS(F77))), NA()) -> 
D78: 23:00:00 | E78: 133.7529164 | F78: -238.4495137 | H78: =IF(Calculations!$AJ$5=TRUE,IF(OR(HOUR(D78)<HOUR($D$54), HOUR(D78)>HOUR($D$55)+1), NA(), E78*SIN(RADIANS(F78))), NA()) -> 
D79: 1 | E79: 138.7358139 | F79: -258.319083 | H79: =IF(Calculations!$AJ$5=TRUE,IF(OR(HOUR(D79)<HOUR($D$54), HOUR(D79)>HOUR($D$55)+1), NA(), E79*SIN(RADIANS(F79))), NA()) -> 

Sheet Equinox (hidden)
C2: SUN PATH VARIABLES CALCULATIONS
C4: Data | G4: Basic Variables
C5: Date : | D5: =DATE(YEAR('Sun Path'!B5),3,20) -> 2018-03-20 | G5: Declination Angle (δ) | H5: =IF(ISBLANK(D5),"",Declination(D13)) -> -0.8071867926
C6: Time : | D6: ='Sun Path'!B6 -> 12:00:00 | G6: Hour Angle (ω) | H6: =IF(ISBLANK(D9),"",HourAngle(H8)) -> 9.279990788
C7: Latitude (φ) : | D7: ='Sun Path'!B7 -> 26.76 | G7: Equation of Time | H7: =IF(ISBLANK(D5),"",Eot(D14)) -> -10.23996315
C8: Longitude : | D8: ='Sun Path'!B8 -> 75.78 | G8: Local Solar Time | H8: =IF(ISBLANK(D9),"",LST(D6,D10,D8,H7)) -> 11:22:52.802
C9: Time Zone : | D9: ='Sun Path'!B9 -> 5.5
C10: Std. Time Longt : | D10: =Custom!D10 -> 82.5
C12: Day Number Calculation | G12: Derived Variables
C13: nth Day | D13: =IF(ISBLANK(D5),"",D5-DATE(YEAR(D5),1,0)) -> 79 | G13: Zenith Angle (θz) | H13: =IF(H6="","",Zenith(D7,H5,H6)) -> 28.98061011
C14: N | D14: =IF(ISBLANK(D5),"",(D13-1)*(360/365.25)) -> 76.8788501 | G14: Altitude Angle (α) | H14: =IF(ISBLANK(D9),"",(90 - H13)) -> 61.01938989
G15: Solar Azimuth Angle (ϒs) | H15: =IF(H6="","",Azimuth(H14,D7,H5,H6)) -> 160.5615582
C18: SUN PATH DIAGRAM CALCULATIONS
D20: Time | E20: Solar Time | F20: Hour Angle | G20: Altitude Angle | H20: Azimuth Angle
C21: Custom | D21: =D6 -> 12:00:00 | E21: =LST(D21,$D$10,$D$8,$H$7) -> 11:22:52.802 | F21: =HourAngle(E21) -> 9.279990788 | G21: =90 - Zenith($D$7,$H$5,F21) -> 61.01938989 | H21: =IF(F21<0,360-Azimuth(G21,$D$7,$H$5,F21),Azimuth(G21,$D$7,$H$5,F21)) -> 160.5615582
C22: Sun Rise | D22: =IF(ISBLANK(D9),"",Sunrise(D7,H5,D10,D8,H7)) -> 06:38:44.893 | E22: =LST(D22,$D$10,$D$8,$H$7) -> 06:01:37.695 | F22: =HourAngle(E22) -> 89.59293732 | G22: =90 - Zenith($D$7,$H$5,F22) -> 0 | H22: =IF(F22<0,360-Azimuth(G22,$D$7,$H$5,F22),Azimuth(G22,$D$7,$H$5,F22)) -> 90.90401304
C23: Sun Set | D23: =IF(ISBLANK(D9),"",Sunset(D7,H5,D10,D8,H7)) -> 18:35:29.503 | E23: =LST(D23,$D$10,$D$8,$H$7) -> 17:58:22.305 | F23: =HourAngle(E23) -> -89.59293732 | G23: =90 - Zenith($D$7,$H$5,F23) -> 0 | H23: =IF(F23<0,360-Azimuth(G23,$D$7,$H$5,F23),Azimuth(G23,$D$7,$H$5,F23)) -> 269.095987
C24: 24 Hour Time Sun Locations | D24: 01:00:00 | E24: =LST(D24,$D$10,$D$8,$H$7) -> 00:22:52.802 | F24: =HourAngle(E24) -> 174.2799908 | G24: =90 - Zenith($D$7,$H$5,F24) -> -63.47111491 | H24: =IF(F24<0,360-Azimuth(G24,$D$7,$H$5,F24),Azimuth(G24,$D$7,$H$5,F24)) -> 12.8924894
D25: 02:00:00 | E25: =LST(D25,$D$10,$D$8,$H$7) -> 01:22:52.802 | F25: =HourAngle(E25) -> 159.2799908 | G25: =90 - Zenith($D$7,$H$5,F25) -> -57.28911979 | H25: =IF(F25<0,360-Azimuth(G25,$D$7,$H$5,F25),Azimuth(G25,$D$7,$H$5,F25)) -> 40.89219954
D26: 03:00:00 | E26: =LST(D26,$D$10,$D$8,$H$7) -> 02:22:52.802 | F26: =HourAngle(E26) -> 144.2799908 | G26: =90 - Zenith($D$7,$H$5,F26) -> -46.98698316 | H26: =IF(F26<0,360-Azimuth(G26,$D$7,$H$5,F26),Azimuth(G26,$D$7,$H$5,F26)) -> 58.84343299
D27: 04:00:00 | E27: =LST(D27,$D$10,$D$8,$H$7) -> 03:22:52.802 | F27: =HourAngle(E27) -> 129.2799908 | G27: =90 - Zenith($D$7,$H$5,F27) -> -34.86128656 | H27: =IF(F27<0,360-Azimuth(G27,$D$7,$H$5,F27),Azimuth(G27,$D$7,$H$5,F27)) -> 70.60720128
D28: 05:00:00 | E28: =LST(D28,$D$10,$D$8,$H$7) -> 04:22:52.802 | F28: =HourAngle(E28) -> 114.2799908 | G28: =90 - Zenith($D$7,$H$5,F28) -> -21.92939016 | H28: =IF(F28<0,360-Azimuth(G28,$D$7,$H$5,F28),Azimuth(G28,$D$7,$H$5,F28)) -> 79.28033023
D29: 06:00:00 | E29: =LST(D29,$D$10,$D$8,$H$7) -> 05:22:52.802 | F29: =HourAngle(E29) -> 99.27999079 | G29: =90 - Zenith($D$7,$H$5,F29) -> -8.645302921 | H29: =IF(F29<0,360-Azimuth(G29,$D$7,$H$5,F29),Azimuth(G29,$D$7,$H$5,F29)) -> 86.51935151
D30: 07:00:00 | E30: =LST(D30,$D$10,$D$8,$H$7) -> 06:22:52.802 | F30: =HourAngle(E30) -> 84.27999079 | G30: =90 - Zenith($D$7,$H$5,F30) -> 4.740391645 | H30: =IF(F30<0,360-Azimuth(G30,$D$7,$H$5,F30),Azimuth(G30,$D$7,$H$5,F30)) -> 93.30477134
D31: 08:00:00 | E31: =LST(D31,$D$10,$D$8,$H$7) -> 07:22:52.802 | F31: =HourAngle(E31) -> 69.27999079 | G31: =90 - Zenith($D$7,$H$5,F31) -> 18.03121828 | H31: =IF(F31<0,360-Azimuth(G31,$D$7,$H$5,F31),Azimuth(G31,$D$7,$H$5,F31)) -> 100.4128756
D32: 09:00:00 | E32: =LST(D32,$D$10,$D$8,$H$7) -> 08:22:52.802 | F32: =HourAngle(E32) -> 54.27999079 | G32: =90 - Zenith($D$7,$H$5,F32) -> 30.99094667 | H32: =IF(F32<0,360-Azimuth(G32,$D$7,$H$5,F32),Azimuth(G32,$D$7,$H$5,F32)) -> 108.7407393
D33: 10:00:00 | E33: =LST(D33,$D$10,$D$8,$H$7) -> 09:22:52.802 | F33: =HourAngle(E33) -> 39.27999079 | G33: =90 - Zenith($D$7,$H$5,F33) -> 43.21579854 | H33: =IF(F33<0,360-Azimuth(G33,$D$7,$H$5,F33),Azimuth(G33,$D$7,$H$5,F33)) -> 119.6989494
D34: 11:00:00 | E34: =LST(D34,$D$10,$D$8,$H$7) -> 10:22:52.802 | F34: =HourAngle(E34) -> 24.27999079 | G34: =90 - Zenith($D$7,$H$5,F34) -> 53.85208036 | H34: =IF(F34<0,360-Azimuth(G34,$D$7,$H$5,F34),Azimuth(G34,$D$7,$H$5,F34)) -> 135.8112274
D35: 12:00:00 | E35: =LST(D35,$D$10,$D$8,$H$7) -> 11:22:52.802 | F35: =HourAngle(E35) -> 9.279990788 | G35: =90 - Zenith($D$7,$H$5,F35) -> 61.01938989 | H35: =IF(F35<0,360-Azimuth(G35,$D$7,$H$5,F35),Azimuth(G35,$D$7,$H$5,F35)) -> 160.5615582
D36: 13:00:00 | E36: =LST(D36,$D$10,$D$8,$H$7) -> 12:22:52.802 | F36: =HourAngle(E36) -> -5.720009212 | G36: =90 - Zenith($D$7,$H$5,F36) -> 61.88740393 | H36: =IF(F36<0,360-Azimuth(G36,$D$7,$H$5,F36),Azimuth(G36,$D$7,$H$5,F36)) -> 192.209938
D37: 14:00:00 | E37: =LST(D37,$D$10,$D$8,$H$7) -> 13:22:52.802 | F37: =HourAngle(E37) -> -20.72000921 | G37: =90 - Zenith($D$7,$H$5,F37) -> 55.96769705 | H37: =IF(F37<0,360-Azimuth(G37,$D$7,$H$5,F37),Azimuth(G37,$D$7,$H$5,F37)) -> 219.2059102
D38: 15:00:00 | E38: =LST(D38,$D$10,$D$8,$H$7) -> 14:22:52.802 | F38: =HourAngle(E38) -> -35.72000921 | G38: =90 - Zenith($D$7,$H$5,F38) -> 45.9318253 | H38: =IF(F38<0,360-Azimuth(G38,$D$7,$H$5,F38),Azimuth(G38,$D$7,$H$5,F38)) -> 237.069625
D39: 16:00:00 | E39: =LST(D39,$D$10,$D$8,$H$7) -> 15:22:52.802 | F39: =HourAngle(E39) -> -50.72000921 | G39: =90 - Zenith($D$7,$H$5,F39) -> 33.98014501 | H39: =IF(F39<0,360-Azimuth(G39,$D$7,$H$5,F39),Azimuth(G39,$D$7,$H$5,F39)) -> 248.9673301
D40: 17:00:00 | E40: =LST(D40,$D$10,$D$8,$H$7) -> 16:22:52.802 | F40: =HourAngle(E40) -> -65.72000921 | G40: =90 - Zenith($D$7,$H$5,F40) -> 21.14796284 | H40: =IF(F40<0,360-Azimuth(G40,$D$7,$H$5,F40),Azimuth(G40,$D$7,$H$5,F40)) -> 257.7616085
D41: 18:00:00 | E41: =LST(D41,$D$10,$D$8,$H$7) -> 17:22:52.802 | F41: =HourAngle(E41) -> -80.72000921 | G41: =90 - Zenith($D$7,$H$5,F41) -> 7.910790493 | H41: =IF(F41<0,360-Azimuth(G41,$D$7,$H$5,F41),Azimuth(G41,$D$7,$H$5,F41)) -> 265.0666042
D42: 19:00:00 | E42: =LST(D42,$D$10,$D$8,$H$7) -> 18:22:52.802 | F42: =HourAngle(E42) -> -95.72000921 | G42: =90 - Zenith($D$7,$H$5,F42) -> -5.470146162 | H42: =IF(F42<0,360-Azimuth(G42,$D$7,$H$5,F42),Azimuth(G42,$D$7,$H$5,F42)) -> 271.8590046
D43: 20:00:00 | E43: =LST(D43,$D$10,$D$8,$H$7) -> 19:22:52.802 | F43: =HourAngle(E43) -> -110.7200092 | G43: =90 - Zenith($D$7,$H$5,F43) -> -18.79730384 | H43: =IF(F43<0,360-Azimuth(G43,$D$7,$H$5,F43),Azimuth(G43,$D$7,$H$5,F43)) -> 278.9151437
D44: 21:00:00 | E44: =LST(D44,$D$10,$D$8,$H$7) -> 20:22:52.802 | F44: =HourAngle(E44) -> -125.7200092 | G44: =90 - Zenith($D$7,$H$5,F44) -> -31.84267278 | H44: =IF(F44<0,360-Azimuth(G44,$D$7,$H$5,F44),Azimuth(G44,$D$7,$H$5,F44)) -> 287.1336945
D45: 22:00:00 | E45: =LST(D45,$D$10,$D$8,$H$7) -> 21:22:52.802 | F45: =HourAngle(E45) -> -140.7200092 | G45: =90 - Zenith($D$7,$H$5,F45) -> -44.22150139 | H45: =IF(F45<0,360-Azimuth(G45,$D$7,$H$5,F45),Azimuth(G45,$D$7,$H$5,F45)) -> 297.951544
D46: 23:00:00 | E46: =LST(D46,$D$10,$D$8,$H$7) -> 22:22:52.802 | F46: =HourAngle(E46) -> -155.7200092 | G46: =90 - Zenith($D$7,$H$5,F46) -> -55.10309987 | H46: =IF(F46<0,360-Azimuth(G46,$D$7,$H$5,F46),Azimuth(G46,$D$7,$H$5,F46)) -> 314.0547776
D47: 1 | E47: =LST(D47,$D$10,$D$8,$H$7) -> 23:22:52.802 | F47: =HourAngle(E47) -> -170.7200092 | G47: =90 - Zenith($D$7,$H$5,F47) -> -62.55699649 | H47: =IF(F47<0,360-Azimuth(G47,$D$7,$H$5,F47),Azimuth(G47,$D$7,$H$5,F47)) -> 339.5206384
C50: Sun Path Graph Positions Calculations (Polar to Cartesian Co-ordinates)
D52: Time | E52: Radius | F52: Theta | G52: Value X | H52: Value Y
C53: Custom | D53: =D21 -> 12:00:00 | E53: =90-G21 -> 28.98061011 | F53: =90-H21 -> -70.56155816 | G53: =E53*COS(RADIANS(F53)) -> 9.644570254 | H53: =IF(Calculations!$AJ$7=TRUE,E53*SIN(RADIANS(F53)), NA()) -> -27.32870335
C54: Sun Rise | D54: =D22 -> 06:38:44.893 | E54: 90 | F54: -0.9040130425 | G54: 89.98879769 | H54: =IF(Calculations!$AJ$7=TRUE,E54*SIN(RADIANS(F54)), NA()) -> -1.419961449
C55: Sun Set | D55: =D23 -> 18:35:29.503 | E55: 90 | F55: -179.095987 | G55: -89.98879769 | H55: =IF(Calculations!$AJ$7=TRUE,E55*SIN(RADIANS(F55)), NA()) -> -1.419961449
C56: 24 Hour Time Sun Locations | D56: 01:00:00 | E56: 153.4711149 | F56: 77.1075106 | G56: =IF(OR(HOUR(D56)<HOUR($D$54), HOUR(D56)>HOUR($D$55)+1), NA(), E56*COS(RADIANS(F56))) ->  | H56: =IF(Calculations!$AJ$7=TRUE,IF(OR(HOUR(D56)<HOUR($D$54), HOUR(D56)>HOUR($D$55)+1), NA(), E56*SIN(RADIANS(F56))), NA()) -> 
D57: 02:00:00 | E57: 147.2891198 | F57: 49.10780046 | G57: =IF(OR(HOUR(D57)<HOUR($D$54), HOUR(D57)>HOUR($D$55)+1), NA(), E57*COS(RADIANS(F57))) ->  | H57: =IF(Calculations!$AJ$7=TRUE,IF(OR(HOUR(D57)<HOUR($D$54), HOUR(D57)>HOUR($D$55)+1), NA(), E57*SIN(RADIANS(F57))), NA()) -> 
D58: 03:00:00 | E58: 136.9869832 | F58: 31.15656701 | H58: =IF(Calculations!$AJ$7=TRUE,IF(OR(HOUR(D58)<HOUR($D$54), HOUR(D58)>HOUR($D$55)+1), NA(), E58*SIN(RADIANS(F58))), NA()) -> 
D59: 04:00:00 | E59: 124.8612866 | F59: 19.39279872 | H59: =IF(Calculations!$AJ$7=TRUE,IF(OR(HOUR(D59)<HOUR($D$54), HOUR(D59)>HOUR($D$55)+1), NA(), E59*SIN(RADIANS(F59))), NA()) -> 
D60: 05:00:00 | E60: 111.9293902 | F60: 10.71966977 | H60: =IF(Calculations!$AJ$7=TRUE,IF(OR(HOUR(D60)<HOUR($D$54), HOUR(D60)>HOUR($D$55)+1), NA(), E60*SIN(RADIANS(F60))), NA()) -> 
D61: 06:00:00 | E61: 98.64530292 | F61: 3.480648494 | G61: 98.4633379 | H61: =IF(Calculations!$AJ$7=TRUE,IF(OR(HOUR(D61)<HOUR($D$54), HOUR(D61)>HOUR($D$55)+1), NA(), E61*SIN(RADIANS(F61))), NA()) -> 5.988896272
D62: 07:00:00 | E62: 85.25960836 | F62: -3.304771341 | G62: 85.11782329 | H62: =IF(Calculations!$AJ$7=TRUE,IF(OR(HOUR(D62)<HOUR($D$54), HOUR(D62)>HOUR($D$55)+1), NA(), E62*SIN(RADIANS(F62))), NA()) -> -4.914974649
D63: 08:00:00 | E63: 71.96878172 | F63: -10.41287565 | G63: 70.78351917 | H63: =IF(Calculations!$AJ$7=TRUE,IF(OR(HOUR(D63)<HOUR($D$54), HOUR(D63)>HOUR($D$55)+1), NA(), E63*SIN(RADIANS(F63))), NA()) -> -13.00764993
D64: 09:00:00 | E64: 59.00905333 | F64: -18.74073935 | G64: 55.88051553 | H64: =IF(Calculations!$AJ$7=TRUE,IF(OR(HOUR(D64)<HOUR($D$54), HOUR(D64)>HOUR($D$55)+1), NA(), E64*SIN(RADIANS(F64))), NA()) -> -18.95880689
D65: 10:00:00 | E65: 46.78420146 | F65: -29.69894937 | G65: 40.63865681 | H65: =IF(Calculations!$AJ$7=TRUE,IF(OR(HOUR(D65)<HOUR($D$54), HOUR(D65)>HOUR($D$55)+1), NA(), E65*SIN(RADIANS(F65))), NA()) -> -23.17889297
D66: 11:00:00 | E66: 36.14791964 | F66: -45.81122737 | G66: 25.1959895 | H66: =IF(Calculations!$AJ$7=TRUE,IF(OR(HOUR(D66)<HOUR($D$54), HOUR(D66)>HOUR($D$55)+1), NA(), E66*SIN(RADIANS(F66))), NA()) -> -25.9197648
D67: 12:00:00 | E67: 28.98061011 | F67: -70.56155816 | G67: 9.644570254 | H67: =IF(Calculations!$AJ$7=TRUE,IF(OR(HOUR(D67)<HOUR($D$54), HOUR(D67)>HOUR($D$55)+1), NA(), E67*SIN(RADIANS(F67))), NA()) -> -27.32870335
D68: 13:00:00 | E68: 28.11259607 | F68: -102.209938 | G68: -5.945654569 | H68: =IF(Calculations!$AJ$7=TRUE,IF(OR(HOUR(D68)<HOUR($D$54), HOUR(D68)>HOUR($D$55)+1), NA(), E68*SIN(RADIANS(F68))), NA()) -> -27.47666737
D69: 14:00:00 | E69: 34.03230295 | F69: -129.2059102 | G69: -21.51213305 | H69: =IF(Calculations!$AJ$7=TRUE,IF(OR(HOUR(D69)<HOUR($D$54), HOUR(D69)>HOUR($D$55)+1), NA(), E69*SIN(RADIANS(F69))), NA()) -> -26.37092671
D70: 15:00:00 | E70: 44.0681747 | F70: -147.069625 | G70: -36.98781976 | H70: =IF(Calculations!$AJ$7=TRUE,IF(OR(HOUR(D70)<HOUR($D$54), HOUR(D70)>HOUR($D$55)+1), NA(), E70*SIN(RADIANS(F70))), NA()) -> -23.95631881
D71: 16:00:00 | E71: 56.01985499 | F71: -158.9673301 | G71: -52.28758449 | H71: =IF(Calculations!$AJ$7=TRUE,IF(OR(HOUR(D71)<HOUR($D$54), HOUR(D71)>HOUR($D$55)+1), NA(), E71*SIN(RADIANS(F71))), NA()) -> -20.10553806
D72: 17:00:00 | E72: 68.85203716 | F72: -167.7616085 | G72: -67.28731093 | H72: =IF(Calculations!$AJ$7=TRUE,IF(OR(HOUR(D72)<HOUR($D$54), HOUR(D72)>HOUR($D$55)+1), NA(), E72*SIN(RADIANS(F72))), NA()) -> -14.59523239
D73: 18:00:00 | E73: 82.08920951 | F73: -175.0666042 | G73: -81.78509691 | H73: =IF(Calculations!$AJ$7=TRUE,IF(OR(HOUR(D73)<HOUR($D$54), HOUR(D73)>HOUR($D$55)+1), NA(), E73*SIN(RADIANS(F73))), NA()) -> -7.059478744
D74: 19:00:00 | E74: 95.47014616 | F74: -181.8590046 | G74: -95.41989858 | H74: =IF(Calculations!$AJ$7=TRUE,IF(OR(HOUR(D74)<HOUR($D$54), HOUR(D74)>HOUR($D$55)+1), NA(), E74*SIN(RADIANS(F74))), NA()) -> 3.097057093
D75: 20:00:00 | E75: 108.7973038 | F75: -188.9151437 | H75: =IF(Calculations!$AJ$7=TRUE,IF(OR(HOUR(D75)<HOUR($D$54), HOUR(D75)>HOUR($D$55)+1), NA(), E75*SIN(RADIANS(F75))), NA()) -> 
D76: 21:00:00 | E76: 121.8426728 | F76: -197.1336945 | H76: =IF(Calculations!$AJ$7=TRUE,IF(OR(HOUR(D76)<HOUR($D$54), HOUR(D76)>HOUR($D$55)+1), NA(), E76*SIN(RADIANS(F76))), NA()) -> 
D77: 22:00:00 | E77: 134.2215014 | F77: -207.951544 | H77: =IF(Calculations!$AJ$7=TRUE,IF(OR(HOUR(D77)<HOUR($D$54), HOUR(D77)>HOUR($D$55)+1), NA(), E77*SIN(RADIANS(F77))), NA()) -> 
D78: 23:00:00 | E78: 145.1030999 | F78: -224.0547776 | H78: =IF(Calculations!$AJ$7=TRUE,IF(OR(HOUR(D78)<HOUR($D$54), HOUR(D78)>HOUR($D$55)+1), NA(), E78*SIN(RADIANS(F78))), NA()) -> 
D79: 1 | E79: 152.5569965 | F79: -249.5206384 | H79: =IF(Calculations!$AJ$7=TRUE,IF(OR(HOUR(D79)<HOUR($D$54), HOUR(D79)>HOUR($D$55)+1), NA(), E79*SIN(RADIANS(F79))), NA()) -> 

Sheet Summer Solstice (hidden)
C2: SUN PATH VARIABLES CALCULATIONS
C4: Data | G4: Basic Variables
C5: Date : | D5: =DATE(YEAR('Sun Path'!B5),6,21) -> 2018-06-21 | G5: Declination Angle (δ) | H5: =IF(ISBLANK(D5),"",Declination(D13)) -> 23.44978285
C6: Time : | D6: ='Sun Path'!B6 -> 12:00:00 | G6: Hour Angle (ω) | H6: =IF(ISBLANK(D9),"",HourAngle(H8)) -> 6.517203784
C7: Latitude (φ) : | D7: ='Sun Path'!B7 -> 26.76 | G7: Equation of Time | H7: =IF(ISBLANK(D5),"",Eot(D14)) -> 0.8111848635
C8: Longitude : | D8: ='Sun Path'!B8 -> 75.78 | G8: Local Solar Time | H8: =IF(ISBLANK(D9),"",LST(D6,D10,D8,H7)) -> 11:33:55.871
C9: Time Zone : | D9: ='Sun Path'!B9 -> 5.5
C10: Std. Time Longt : | D10: =Custom!D10 -> 82.5
C12: Day Number Calculation | G12: Derived Variables
C13: nth Day | D13: =IF(ISBLANK(D5),"",D5-DATE(YEAR(D5),1,0)) -> 172 | G13: Zenith Angle (θz) | H13: =IF(H6="","",Zenith(D7,H5,H6)) -> 6.764826359
C14: N | D14: =IF(ISBLANK(D5),"",(D13-1)*(360/365.25)) -> 168.5420945 | G14: Altitude Angle (α) | H14: =IF(ISBLANK(D9),"",(90 - H13)) -> 83.23517364
G15: Solar Azimuth Angle (ϒs) | H15: =IF(H6="","",Azimuth(H14,D7,H5,H6)) -> 117.8742675
C18: SUN PATH DIAGRAM CALCULATIONS
D20: Time | E20: Solar Time | F20: Hour Angle | G20: Altitude Angle | H20: Azimuth Angle
C21: Custom | D21: =D6 -> 12:00:00 | E21: =LST(D21,$D$10,$D$8,$H$7) -> 11:33:55.871 | F21: =HourAngle(E21) -> 6.517203784 | G21: =90 - Zenith($D$7,$H$5,F21) -> 83.23517364 | H21: =IF(F21<0,360-Azimuth(G21,$D$7,$H$5,F21),Azimuth(G21,$D$7,$H$5,F21)) -> 117.8742675
C22: Sun Rise | D22: =IF(ISBLANK(D9),"",Sunrise(D7,H5,D10,D8,H7)) -> 05:35:31.814 | E22: =LST(D22,$D$10,$D$8,$H$7) -> 05:09:27.685 | F22: =HourAngle(E22) -> 102.6346467 | G22: =90 - Zenith($D$7,$H$5,F22) -> 0 | H22: =IF(F22<0,360-Azimuth(G22,$D$7,$H$5,F22),Azimuth(G22,$D$7,$H$5,F22)) -> 63.5333392
C23: Sun Set | D23: =IF(ISBLANK(D9),"",Sunset(D7,H5,D10,D8,H7)) -> 19:16:36.444 | E23: =LST(D23,$D$10,$D$8,$H$7) -> 18:50:32.315 | F23: =HourAngle(E23) -> -102.6346467 | G23: =90 - Zenith($D$7,$H$5,F23) -> 0 | H23: =IF(F23<0,360-Azimuth(G23,$D$7,$H$5,F23),Azimuth(G23,$D$7,$H$5,F23)) -> 296.4666608
C24: 24 Hour Time Sun Locations | D24: 01:00:00 | E24: =LST(D24,$D$10,$D$8,$H$7) -> 00:33:55.871 | F24: =HourAngle(E24) -> 171.5172038 | G24: =90 - Zenith($D$7,$H$5,F24) -> -39.12520369 | H24: =IF(F24<0,360-Azimuth(G24,$D$7,$H$5,F24),Azimuth(G24,$D$7,$H$5,F24)) -> 10.04638196
D25: 02:00:00 | E25: =LST(D25,$D$10,$D$8,$H$7) -> 01:33:55.871 | F25: =HourAngle(E25) -> 156.5172038 | G25: =90 - Zenith($D$7,$H$5,F25) -> -34.89930309 | H25: =IF(F25<0,360-Azimuth(G25,$D$7,$H$5,F25),Azimuth(G25,$D$7,$H$5,F25)) -> 26.46958803
D26: 03:00:00 | E26: =LST(D26,$D$10,$D$8,$H$7) -> 02:33:55.871 | F26: =HourAngle(E26) -> 141.5172038 | G26: =90 - Zenith($D$7,$H$5,F26) -> -27.51972648 | H26: =IF(F26<0,360-Azimuth(G26,$D$7,$H$5,F26),Azimuth(G26,$D$7,$H$5,F26)) -> 40.06984157
D27: 04:00:00 | E27: =LST(D27,$D$10,$D$8,$H$7) -> 03:33:55.871 | F27: =HourAngle(E27) -> 126.5172038 | G27: =90 - Zenith($D$7,$H$5,F27) -> -17.95519975 | H27: =IF(F27<0,360-Azimuth(G27,$D$7,$H$5,F27),Azimuth(G27,$D$7,$H$5,F27)) -> 50.80941364
D28: 05:00:00 | E28: =LST(D28,$D$10,$D$8,$H$7) -> 04:33:55.871 | F28: =HourAngle(E28) -> 111.5172038 | G28: =90 - Zenith($D$7,$H$5,F28) -> -6.965613783 | H28: =IF(F28<0,360-Azimuth(G28,$D$7,$H$5,F28),Azimuth(G28,$D$7,$H$5,F28)) -> 59.29625208
D29: 06:00:00 | E29: =LST(D29,$D$10,$D$8,$H$7) -> 05:33:55.871 | F29: =HourAngle(E29) -> 96.51720378 | G29: =90 - Zenith($D$7,$H$5,F29) -> 4.9450995 | H29: =IF(F29<0,360-Azimuth(G29,$D$7,$H$5,F29),Azimuth(G29,$D$7,$H$5,F29)) -> 66.18956781
D30: 07:00:00 | E30: =LST(D30,$D$10,$D$8,$H$7) -> 06:33:55.871 | F30: =HourAngle(E30) -> 81.51720378 | G30: =90 - Zenith($D$7,$H$5,F30) -> 17.45832798 | H30: =IF(F30<0,360-Azimuth(G30,$D$7,$H$5,F30),Azimuth(G30,$D$7,$H$5,F30)) -> 72.02459403
D31: 08:00:00 | E31: =LST(D31,$D$10,$D$8,$H$7) -> 07:33:55.871 | F31: =HourAngle(E31) -> 66.51720378 | G31: =90 - Zenith($D$7,$H$5,F31) -> 30.37040876 | H31: =IF(F31<0,360-Azimuth(G31,$D$7,$H$5,F31),Azimuth(G31,$D$7,$H$5,F31)) -> 77.22843814
D32: 09:00:00 | E32: =LST(D32,$D$10,$D$8,$H$7) -> 08:33:55.871 | F32: =HourAngle(E32) -> 51.51720378 | G32: =90 - Zenith($D$7,$H$5,F32) -> 43.54467737 | H32: =IF(F32<0,360-Azimuth(G32,$D$7,$H$5,F32),Azimuth(G32,$D$7,$H$5,F32)) -> 82.2071637
D33: 10:00:00 | E33: =LST(D33,$D$10,$D$8,$H$7) -> 09:33:55.871 | F33: =HourAngle(E33) -> 36.51720378 | G33: =90 - Zenith($D$7,$H$5,F33) -> 56.8784821 | H33: =IF(F33<0,360-Azimuth(G33,$D$7,$H$5,F33),Azimuth(G33,$D$7,$H$5,F33)) -> 87.5506173
D34: 11:00:00 | E34: =LST(D34,$D$10,$D$8,$H$7) -> 10:33:55.871 | F34: =HourAngle(E34) -> 21.51720378 | G34: =90 - Zenith($D$7,$H$5,F34) -> 70.26128571 | H34: =IF(F34<0,360-Azimuth(G34,$D$7,$H$5,F34),Azimuth(G34,$D$7,$H$5,F34)) -> 94.91811239
D35: 12:00:00 | E35: =LST(D35,$D$10,$D$8,$H$7) -> 11:33:55.871 | F35: =HourAngle(E35) -> 6.517203784 | G35: =90 - Zenith($D$7,$H$5,F35) -> 83.23517364 | H35: =IF(F35<0,360-Azimuth(G35,$D$7,$H$5,F35),Azimuth(G35,$D$7,$H$5,F35)) -> 117.8742675
D36: 13:00:00 | E36: =LST(D36,$D$10,$D$8,$H$7) -> 12:33:55.871 | F36: =HourAngle(E36) -> -8.482796216 | G36: =90 - Zenith($D$7,$H$5,F36) -> 81.6384502 | H36: =IF(F36<0,360-Azimuth(G36,$D$7,$H$5,F36),Azimuth(G36,$D$7,$H$5,F36)) -> 248.5309544
D37: 14:00:00 | E37: =LST(D37,$D$10,$D$8,$H$7) -> 13:33:55.871 | F37: =HourAngle(E37) -> -23.48279622 | G37: =90 - Zenith($D$7,$H$5,F37) -> 68.51115768 | H37: =IF(F37<0,360-Azimuth(G37,$D$7,$H$5,F37),Azimuth(G37,$D$7,$H$5,F37)) -> 266.3168907
D38: 15:00:00 | E38: =LST(D38,$D$10,$D$8,$H$7) -> 14:33:55.871 | F38: =HourAngle(E38) -> -38.48279622 | G38: =90 - Zenith($D$7,$H$5,F38) -> 55.12555691 | H38: =IF(F38<0,360-Azimuth(G38,$D$7,$H$5,F38),Azimuth(G38,$D$7,$H$5,F38)) -> 273.2060842
D39: 16:00:00 | E39: =LST(D39,$D$10,$D$8,$H$7) -> 15:33:55.871 | F39: =HourAngle(E39) -> -53.48279622 | G39: =90 - Zenith($D$7,$H$5,F39) -> 41.8072106 | H39: =IF(F39<0,360-Azimuth(G39,$D$7,$H$5,F39),Azimuth(G39,$D$7,$H$5,F39)) -> 278.449314
D40: 17:00:00 | E40: =LST(D40,$D$10,$D$8,$H$7) -> 16:33:55.871 | F40: =HourAngle(E40) -> -68.48279622 | G40: =90 - Zenith($D$7,$H$5,F40) -> 28.66102187 | H40: =IF(F40<0,360-Azimuth(G40,$D$7,$H$5,F40),Azimuth(G40,$D$7,$H$5,F40)) -> 283.4314037
D41: 18:00:00 | E41: =LST(D41,$D$10,$D$8,$H$7) -> 17:33:55.871 | F41: =HourAngle(E41) -> -83.48279622 | G41: =90 - Zenith($D$7,$H$5,F41) -> 15.79235586 | H41: =IF(F41<0,360-Azimuth(G41,$D$7,$H$5,F41),Azimuth(G41,$D$7,$H$5,F41)) -> 288.695622
D42: 19:00:00 | E42: =LST(D42,$D$10,$D$8,$H$7) -> 18:33:55.871 | F42: =HourAngle(E42) -> -98.48279622 | G42: =90 - Zenith($D$7,$H$5,F42) -> 3.344589701 | H42: =IF(F42<0,360-Azimuth(G42,$D$7,$H$5,F42),Azimuth(G42,$D$7,$H$5,F42)) -> 294.6433232
D43: 20:00:00 | E43: =LST(D43,$D$10,$D$8,$H$7) -> 19:33:55.871 | F43: =HourAngle(E43) -> -113.4827962 | G43: =90 - Zenith($D$7,$H$5,F43) -> -8.466737004 | H43: =IF(F43<0,360-Azimuth(G43,$D$7,$H$5,F43),Azimuth(G43,$D$7,$H$5,F43)) -> 301.7120571
D44: 21:00:00 | E44: =LST(D44,$D$10,$D$8,$H$7) -> 20:33:55.871 | F44: =HourAngle(E44) -> -128.4827962 | G44: =90 - Zenith($D$7,$H$5,F44) -> -19.30319156 | H44: =IF(F44<0,360-Azimuth(G44,$D$7,$H$5,F44),Azimuth(G44,$D$7,$H$5,F44)) -> 310.4545953
D45: 22:00:00 | E45: =LST(D45,$D$10,$D$8,$H$7) -> 21:33:55.871 | F45: =HourAngle(E45) -> -143.4827962 | G45: =90 - Zenith($D$7,$H$5,F45) -> -28.6305899 | H45: =IF(F45<0,360-Azimuth(G45,$D$7,$H$5,F45),Azimuth(G45,$D$7,$H$5,F45)) -> 321.5400898
D46: 23:00:00 | E46: =LST(D46,$D$10,$D$8,$H$7) -> 22:33:55.871 | F46: =HourAngle(E46) -> -158.4827962 | G46: =90 - Zenith($D$7,$H$5,F46) -> -35.65403469 | H46: =IF(F46<0,360-Azimuth(G46,$D$7,$H$5,F46),Azimuth(G46,$D$7,$H$5,F46)) -> 335.5365468
D47: 1 | E47: =LST(D47,$D$10,$D$8,$H$7) -> 23:33:55.871 | F47: =HourAngle(E47) -> -173.4827962 | G47: =90 - Zenith($D$7,$H$5,F47) -> -39.39662424 | H47: =IF(F47<0,360-Azimuth(G47,$D$7,$H$5,F47),Azimuth(G47,$D$7,$H$5,F47)) -> 352.2561002
C50: Sun Path Graph Positions Calculations (Polar to Cartesian Co-ordinates)
D52: Time | E52: Radius | F52: Theta | G52: Value X | H52: Value Y
C53: Custom | D53: =D21 -> 12:00:00 | E53: =90-G21 -> 6.764826359 | F53: =90-H21 -> -27.87426754 | G53: =E53*COS(RADIANS(F53)) -> 5.979942088 | H53: =IF(Calculations!$AJ$6=TRUE,E53*SIN(RADIANS(F53)), NA()) -> -3.162778572
C54: Sun Rise | D54: =D22 -> 05:35:31.814 | E54: 90 | F54: 26.4666608 | G54: 80.56744588 | H54: =IF(Calculations!$AJ$6=TRUE,E54*SIN(RADIANS(F54)), NA()) -> 40.11092948
C55: Sun Set | D55: =D23 -> 19:16:36.444 | E55: 90 | F55: -206.4666608 | G55: -80.56744588 | H55: =IF(Calculations!$AJ$6=TRUE,E55*SIN(RADIANS(F55)), NA()) -> 40.11092948
C56: 24 Hour Time Sun Locations | D56: 01:00:00 | E56: 129.1252037 | F56: 79.95361804 | G56: =IF(OR(HOUR(D56)<HOUR($D$54), HOUR(D56)>HOUR($D$55)+1), NA(), E56*COS(RADIANS(F56))) ->  | H56: =IF(Calculations!$AJ$6=TRUE,IF(OR(HOUR(D56)<HOUR($D$54), HOUR(D56)>HOUR($D$55)+1), NA(), E56*SIN(RADIANS(F56))), NA()) -> 
D57: 02:00:00 | E57: 124.8993031 | F57: 63.53041197 | G57: =IF(OR(HOUR(D57)<HOUR($D$54), HOUR(D57)>HOUR($D$55)+1), NA(), E57*COS(RADIANS(F57))) ->  | H57: =IF(Calculations!$AJ$6=TRUE,IF(OR(HOUR(D57)<HOUR($D$54), HOUR(D57)>HOUR($D$55)+1), NA(), E57*SIN(RADIANS(F57))), NA()) -> 
D58: 03:00:00 | E58: 117.5197265 | F58: 49.93015843 | H58: =IF(Calculations!$AJ$6=TRUE,IF(OR(HOUR(D58)<HOUR($D$54), HOUR(D58)>HOUR($D$55)+1), NA(), E58*SIN(RADIANS(F58))), NA()) -> 
D59: 04:00:00 | E59: 107.9551997 | F59: 39.19058636 | H59: =IF(Calculations!$AJ$6=TRUE,IF(OR(HOUR(D59)<HOUR($D$54), HOUR(D59)>HOUR($D$55)+1), NA(), E59*SIN(RADIANS(F59))), NA()) -> 
D60: 05:00:00 | E60: 96.96561378 | F60: 30.70374792 | G60: 83.3728648 | H60: =IF(Calculations!$AJ$6=TRUE,IF(OR(HOUR(D60)<HOUR($D$54), HOUR(D60)>HOUR($D$55)+1), NA(), E60*SIN(RADIANS(F60))), NA()) -> 49.51056122
D61: 06:00:00 | E61: 85.0549005 | F61: 23.81043219 | G61: 77.81555273 | H61: =IF(Calculations!$AJ$6=TRUE,IF(OR(HOUR(D61)<HOUR($D$54), HOUR(D61)>HOUR($D$55)+1), NA(), E61*SIN(RADIANS(F61))), NA()) -> 34.33767395
D62: 07:00:00 | E62: 72.54167202 | F62: 17.97540597 | G62: 69.00084577 | H62: =IF(Calculations!$AJ$6=TRUE,IF(OR(HOUR(D62)<HOUR($D$54), HOUR(D62)>HOUR($D$55)+1), NA(), E62*SIN(RADIANS(F62))), NA()) -> 22.38699312
D63: 08:00:00 | E63: 59.62959124 | F63: 12.77156186 | G63: 58.1543073 | H63: =IF(Calculations!$AJ$6=TRUE,IF(OR(HOUR(D63)<HOUR($D$54), HOUR(D63)>HOUR($D$55)+1), NA(), E63*SIN(RADIANS(F63))), NA()) -> 13.18198372
D64: 09:00:00 | E64: 46.45532263 | F64: 7.792836299 | G64: 46.0262985 | H64: =IF(Calculations!$AJ$6=TRUE,IF(OR(HOUR(D64)<HOUR($D$54), HOUR(D64)>HOUR($D$55)+1), NA(), E64*SIN(RADIANS(F64))), NA()) -> 6.298956077
D65: 10:00:00 | E65: 33.1215179 | F65: 2.449382699 | G65: 33.09125698 | H65: =IF(Calculations!$AJ$6=TRUE,IF(OR(HOUR(D65)<HOUR($D$54), HOUR(D65)>HOUR($D$55)+1), NA(), E65*SIN(RADIANS(F65))), NA()) -> 1.415506783
D66: 11:00:00 | E66: 19.73871429 | F66: -4.918112392 | G66: 19.66604117 | H66: =IF(Calculations!$AJ$6=TRUE,IF(OR(HOUR(D66)<HOUR($D$54), HOUR(D66)>HOUR($D$55)+1), NA(), E66*SIN(RADIANS(F66))), NA()) -> -1.692237172
D67: 12:00:00 | E67: 6.764826359 | F67: -27.87426754 | G67: 5.979942088 | H67: =IF(Calculations!$AJ$6=TRUE,IF(OR(HOUR(D67)<HOUR($D$54), HOUR(D67)>HOUR($D$55)+1), NA(), E67*SIN(RADIANS(F67))), NA()) -> -3.162778572
D68: 13:00:00 | E68: 8.361549798 | F68: -158.5309544 | G68: -7.781387315 | H68: =IF(Calculations!$AJ$6=TRUE,IF(OR(HOUR(D68)<HOUR($D$54), HOUR(D68)>HOUR($D$55)+1), NA(), E68*SIN(RADIANS(F68))), NA()) -> -3.060314768
D69: 14:00:00 | E69: 21.48884232 | F69: -176.3168907 | G69: -21.44445924 | H69: =IF(Calculations!$AJ$6=TRUE,IF(OR(HOUR(D69)<HOUR($D$54), HOUR(D69)>HOUR($D$55)+1), NA(), E69*SIN(RADIANS(F69))), NA()) -> -1.380402861
D70: 15:00:00 | E70: 34.87444309 | F70: -183.2060842 | G70: -34.81985869 | H70: =IF(Calculations!$AJ$6=TRUE,IF(OR(HOUR(D70)<HOUR($D$54), HOUR(D70)>HOUR($D$55)+1), NA(), E70*SIN(RADIANS(F70))), NA()) -> 1.950441412
D71: 16:00:00 | E71: 48.1927894 | F71: -188.449314 | G71: -47.66971615 | H71: =IF(Calculations!$AJ$6=TRUE,IF(OR(HOUR(D71)<HOUR($D$54), HOUR(D71)>HOUR($D$55)+1), NA(), E71*SIN(RADIANS(F71))), NA()) -> 7.08118014
D72: 17:00:00 | E72: 61.33897813 | F72: -193.4314037 | G72: -59.66127805 | H72: =IF(Calculations!$AJ$6=TRUE,IF(OR(HOUR(D72)<HOUR($D$54), HOUR(D72)>HOUR($D$55)+1), NA(), E72*SIN(RADIANS(F72))), NA()) -> 14.24788193
D73: 18:00:00 | E73: 74.20764414 | F73: -198.695622 | G73: -70.29206096 | H73: =IF(Calculations!$AJ$6=TRUE,IF(OR(HOUR(D73)<HOUR($D$54), HOUR(D73)>HOUR($D$55)+1), NA(), E73*SIN(RADIANS(F73))), NA()) -> 23.78656373
D74: 19:00:00 | E74: 86.6554103 | F74: -204.6433232 | G74: -78.7629296 | H74: =IF(Calculations!$AJ$6=TRUE,IF(OR(HOUR(D74)<HOUR($D$54), HOUR(D74)>HOUR($D$55)+1), NA(), E74*SIN(RADIANS(F74))), NA()) -> 36.1325484
D75: 20:00:00 | E75: 98.466737 | F75: -211.7120571 | G75: -83.76570363 | H75: =IF(Calculations!$AJ$6=TRUE,IF(OR(HOUR(D75)<HOUR($D$54), HOUR(D75)>HOUR($D$55)+1), NA(), E75*SIN(RADIANS(F75))), NA()) -> 51.75910733
D76: 21:00:00 | E76: 109.3031916 | F76: -220.4545953 | H76: =IF(Calculations!$AJ$6=TRUE,IF(OR(HOUR(D76)<HOUR($D$54), HOUR(D76)>HOUR($D$55)+1), NA(), E76*SIN(RADIANS(F76))), NA()) -> 
D77: 22:00:00 | E77: 118.6305899 | F77: -231.5400898 | H77: =IF(Calculations!$AJ$6=TRUE,IF(OR(HOUR(D77)<HOUR($D$54), HOUR(D77)>HOUR($D$55)+1), NA(), E77*SIN(RADIANS(F77))), NA()) -> 
D78: 23:00:00 | E78: 125.6540347 | F78: -245.5365468 | H78: =IF(Calculations!$AJ$6=TRUE,IF(OR(HOUR(D78)<HOUR($D$54), HOUR(D78)>HOUR($D$55)+1), NA(), E78*SIN(RADIANS(F78))), NA()) -> 
D79: 1 | E79: 129.3966242 | F79: -262.2561002 | H79: =IF(Calculations!$AJ$6=TRUE,IF(OR(HOUR(D79)<HOUR($D$54), HOUR(D79)>HOUR($D$55)+1), NA(), E79*SIN(RADIANS(F79))), NA()) -> 

Sheet Winter Solstice (hidden)
C2: SUN PATH VARIABLES CALCULATIONS
C4: Data | G4: Basic Variables
C5: Date : | D5: =DATE(YEAR('Sun Path'!B5),12,22) -> 2018-12-22 | G5: Declination Angle (δ) | H5: =IF(ISBLANK(D5),"",Declination(D13)) -> -23.44457137
C6: Time : | D6: ='Sun Path'!B6 -> 12:00:00 | G6: Hour Angle (ω) | H6: =IF(ISBLANK(D9),"",HourAngle(H8)) -> 5.727041718
C7: Latitude (φ) : | D7: ='Sun Path'!B7 -> 26.76 | G7: Equation of Time | H7: =IF(ISBLANK(D5),"",Eot(D14)) -> 3.971833127
C8: Longitude : | D8: ='Sun Path'!B8 -> 75.78 | G8: Local Solar Time | H8: =IF(ISBLANK(D9),"",LST(D6,D10,D8,H7)) -> 11:37:05.510
C9: Time Zone : | D9: ='Sun Path'!B9 -> 5.5
C10: Std. Time Longt : | D10: =Custom!D10 -> 82.5
C12: Day Number Calculation | G12: Derived Variables
C13: nth Day | D13: =IF(ISBLANK(D5),"",D5-DATE(YEAR(D5),1,0)) -> 356 | G13: Zenith Angle (θz) | H13: =IF(H6="","",Zenith(D7,H5,H6)) -> 50.50881525
C14: N | D14: =IF(ISBLANK(D5),"",(D13-1)*(360/365.25)) -> 349.8973306 | G14: Altitude Angle (α) | H14: =IF(ISBLANK(D9),"",(90 - H13)) -> 39.49118475
G15: Solar Azimuth Angle (ϒs) | H15: =IF(H6="","",Azimuth(H14,D7,H5,H6)) -> 173.1868178
C18: SUN PATH DIAGRAM CALCULATIONS
D20: Time | E20: Solar Time | F20: Hour Angle | G20: Altitude Angle | H20: Azimuth Angle
C21: Custom | D21: =D6 -> 12:00:00 | E21: =LST(D21,$D$10,$D$8,$H$7) -> 11:37:05.510 | F21: =HourAngle(E21) -> 5.727041718 | G21: =90 - Zenith($D$7,$H$5,F21) -> 39.49118475 | H21: =IF(F21<0,360-Azimuth(G21,$D$7,$H$5,F21),Azimuth(G21,$D$7,$H$5,F21)) -> 173.1868178
C22: Sun Rise | D22: =IF(ISBLANK(D9),"",Sunrise(D7,H5,D10,D8,H7)) -> 07:13:26.037 | E22: =LST(D22,$D$10,$D$8,$H$7) -> 06:50:31.547 | F22: =HourAngle(E22) -> 77.36855303 | G22: =90 - Zenith($D$7,$H$5,F22) -> 0 | H22: =IF(F22<0,360-Azimuth(G22,$D$7,$H$5,F22),Azimuth(G22,$D$7,$H$5,F22)) -> 116.4606794
C23: Sun Set | D23: =IF(ISBLANK(D9),"",Sunset(D7,H5,D10,D8,H7)) -> 17:32:22.943 | E23: =LST(D23,$D$10,$D$8,$H$7) -> 17:09:28.453 | F23: =HourAngle(E23) -> -77.36855303 | G23: =90 - Zenith($D$7,$H$5,F23) -> 0 | H23: =IF(F23<0,360-Azimuth(G23,$D$7,$H$5,F23),Azimuth(G23,$D$7,$H$5,F23)) -> 243.5393206
C24: 24 Hour Time Sun Locations | D24: 01:00:00 | E24: =LST(D24,$D$10,$D$8,$H$7) -> 00:37:05.510 | F24: =HourAngle(E24) -> 170.7270417 | G24: =90 - Zenith($D$7,$H$5,F24) -> -80.97538368 | H24: =IF(F24<0,360-Azimuth(G24,$D$7,$H$5,F24),Azimuth(G24,$D$7,$H$5,F24)) -> 70.47128867
D25: 02:00:00 | E25: =LST(D25,$D$10,$D$8,$H$7) -> 01:37:05.510 | F25: =HourAngle(E25) -> 155.7270417 | G25: =90 - Zenith($D$7,$H$5,F25) -> -67.80567218 | H25: =IF(F25<0,360-Azimuth(G25,$D$7,$H$5,F25),Azimuth(G25,$D$7,$H$5,F25)) -> 86.76526326
D26: 03:00:00 | E26: =LST(D26,$D$10,$D$8,$H$7) -> 02:37:05.510 | F26: =HourAngle(E26) -> 140.7270417 | G26: =90 - Zenith($D$7,$H$5,F26) -> -54.41999458 | H26: =IF(F26<0,360-Azimuth(G26,$D$7,$H$5,F26),Azimuth(G26,$D$7,$H$5,F26)) -> 93.49469105
D27: 04:00:00 | E27: =LST(D27,$D$10,$D$8,$H$7) -> 03:37:05.510 | F27: =HourAngle(E27) -> 125.7270417 | G27: =90 - Zenith($D$7,$H$5,F27) -> -41.1081504 | H27: =IF(F27<0,360-Azimuth(G27,$D$7,$H$5,F27),Azimuth(G27,$D$7,$H$5,F27)) -> 98.70544036
D28: 05:00:00 | E28: =LST(D28,$D$10,$D$8,$H$7) -> 04:37:05.510 | F28: =HourAngle(E28) -> 110.7270417 | G28: =90 - Zenith($D$7,$H$5,F28) -> -27.97347121 | H28: =IF(F28<0,360-Azimuth(G28,$D$7,$H$5,F28),Azimuth(G28,$D$7,$H$5,F28)) -> 103.6924326
D29: 06:00:00 | E29: =LST(D29,$D$10,$D$8,$H$7) -> 05:37:05.510 | F29: =HourAngle(E29) -> 95.72704172 | G29: =90 - Zenith($D$7,$H$5,F29) -> -15.12258911 | H29: =IF(F29<0,360-Azimuth(G29,$D$7,$H$5,F29),Azimuth(G29,$D$7,$H$5,F29)) -> 108.983418
D30: 07:00:00 | E30: =LST(D30,$D$10,$D$8,$H$7) -> 06:37:05.510 | F30: =HourAngle(E30) -> 80.72704172 | G30: =90 - Zenith($D$7,$H$5,F30) -> -2.701734963 | H30: =IF(F30<0,360-Azimuth(G30,$D$7,$H$5,F30),Azimuth(G30,$D$7,$H$5,F30)) -> 114.9788549
D31: 08:00:00 | E31: =LST(D31,$D$10,$D$8,$H$7) -> 07:37:05.510 | F31: =HourAngle(E31) -> 65.72704172 | G31: =90 - Zenith($D$7,$H$5,F31) -> 9.068547316 | H31: =IF(F31<0,360-Azimuth(G31,$D$7,$H$5,F31),Azimuth(G31,$D$7,$H$5,F31)) -> 122.1210083
D32: 09:00:00 | E32: =LST(D32,$D$10,$D$8,$H$7) -> 08:37:05.510 | F32: =HourAngle(E32) -> 50.72704172 | G32: =90 - Zenith($D$7,$H$5,F32) -> 19.84150503 | H32: =IF(F32<0,360-Azimuth(G32,$D$7,$H$5,F32),Azimuth(G32,$D$7,$H$5,F32)) -> 130.9699123
D33: 10:00:00 | E33: =LST(D33,$D$10,$D$8,$H$7) -> 09:37:05.510 | F33: =HourAngle(E33) -> 35.72704172 | G33: =90 - Zenith($D$7,$H$5,F33) -> 29.0704004 | H33: =IF(F33<0,360-Azimuth(G33,$D$7,$H$5,F33),Azimuth(G33,$D$7,$H$5,F33)) -> 142.1980339
D34: 11:00:00 | E34: =LST(D34,$D$10,$D$8,$H$7) -> 10:37:05.510 | F34: =HourAngle(E34) -> 20.72704172 | G34: =90 - Zenith($D$7,$H$5,F34) -> 35.9464039 | H34: =IF(F34<0,360-Azimuth(G34,$D$7,$H$5,F34),Azimuth(G34,$D$7,$H$5,F34)) -> 156.3544454
D35: 12:00:00 | E35: =LST(D35,$D$10,$D$8,$H$7) -> 11:37:05.510 | F35: =HourAngle(E35) -> 5.727041718 | G35: =90 - Zenith($D$7,$H$5,F35) -> 39.49118475 | H35: =IF(F35<0,360-Azimuth(G35,$D$7,$H$5,F35),Azimuth(G35,$D$7,$H$5,F35)) -> 173.1868178
D36: 13:00:00 | E36: =LST(D36,$D$10,$D$8,$H$7) -> 12:37:05.510 | F36: =HourAngle(E36) -> -9.272958282 | G36: =90 - Zenith($D$7,$H$5,F36) -> 39.00167865 | H36: =IF(F36<0,360-Azimuth(G36,$D$7,$H$5,F36),Azimuth(G36,$D$7,$H$5,F36)) -> 190.9663861
D37: 14:00:00 | E37: =LST(D37,$D$10,$D$8,$H$7) -> 13:37:05.510 | F37: =HourAngle(E37) -> -24.27295828 | G37: =90 - Zenith($D$7,$H$5,F37) -> 34.58513062 | H37: =IF(F37<0,360-Azimuth(G37,$D$7,$H$5,F37),Azimuth(G37,$D$7,$H$5,F37)) -> 207.2646505
D38: 15:00:00 | E38: =LST(D38,$D$10,$D$8,$H$7) -> 14:37:05.510 | F38: =HourAngle(E38) -> -39.27295828 | G38: =90 - Zenith($D$7,$H$5,F38) -> 27.06660556 | H38: =IF(F38<0,360-Azimuth(G38,$D$7,$H$5,F38),Azimuth(G38,$D$7,$H$5,F38)) -> 220.7066064
D39: 16:00:00 | E39: =LST(D39,$D$10,$D$8,$H$7) -> 15:37:05.510 | F39: =HourAngle(E39) -> -54.27295828 | G39: =90 - Zenith($D$7,$H$5,F39) -> 17.4098331 | H39: =IF(F39<0,360-Azimuth(G39,$D$7,$H$5,F39),Azimuth(G39,$D$7,$H$5,F39)) -> 231.310703
D40: 17:00:00 | E40: =LST(D40,$D$10,$D$8,$H$7) -> 16:37:05.510 | F40: =HourAngle(E40) -> -69.27295828 | G40: =90 - Zenith($D$7,$H$5,F40) -> 6.360558668 | H40: =IF(F40<0,360-Azimuth(G40,$D$7,$H$5,F40),Azimuth(G40,$D$7,$H$5,F40)) -> 239.6982659
D41: 18:00:00 | E41: =LST(D41,$D$10,$D$8,$H$7) -> 17:37:05.510 | F41: =HourAngle(E41) -> -84.27295828 | G41: =90 - Zenith($D$7,$H$5,F41) -> -5.589053064 | H41: =IF(F41<0,360-Azimuth(G41,$D$7,$H$5,F41),Azimuth(G41,$D$7,$H$5,F41)) -> 246.5239277
D42: 19:00:00 | E42: =LST(D42,$D$10,$D$8,$H$7) -> 18:37:05.510 | F42: =HourAngle(E42) -> -99.27295828 | G42: =90 - Zenith($D$7,$H$5,F42) -> -18.12801688 | H42: =IF(F42<0,360-Azimuth(G42,$D$7,$H$5,F42),Azimuth(G42,$D$7,$H$5,F42)) -> 252.3161127
D43: 20:00:00 | E43: =LST(D43,$D$10,$D$8,$H$7) -> 19:37:05.510 | F43: =HourAngle(E43) -> -114.2729583 | G43: =90 - Zenith($D$7,$H$5,F43) -> -31.05722189 | H43: =IF(F43<0,360-Azimuth(G43,$D$7,$H$5,F43),Azimuth(G43,$D$7,$H$5,F43)) -> 257.4982768
D44: 21:00:00 | E44: =LST(D44,$D$10,$D$8,$H$7) -> 20:37:05.510 | F44: =HourAngle(E44) -> -129.2729583 | G44: =90 - Zenith($D$7,$H$5,F44) -> -44.24254756 | H44: =IF(F44<0,360-Azimuth(G44,$D$7,$H$5,F44),Azimuth(G44,$D$7,$H$5,F44)) -> 262.4794756
D45: 22:00:00 | E45: =LST(D45,$D$10,$D$8,$H$7) -> 21:37:05.510 | F45: =HourAngle(E45) -> -144.2729583 | G45: =90 - Zenith($D$7,$H$5,F45) -> -57.58224012 | H45: =IF(F45<0,360-Azimuth(G45,$D$7,$H$5,F45),Azimuth(G45,$D$7,$H$5,F45)) -> 267.8719883
D46: 23:00:00 | E46: =LST(D46,$D$10,$D$8,$H$7) -> 22:37:05.510 | F46: =HourAngle(E46) -> -159.2729583 | G46: =90 - Zenith($D$7,$H$5,F46) -> -70.96264203 | H46: =IF(F46<0,360-Azimuth(G46,$D$7,$H$5,F46),Azimuth(G46,$D$7,$H$5,F46)) -> 275.4706145
D47: 1 | E47: =LST(D47,$D$10,$D$8,$H$7) -> 23:37:05.510 | F47: =HourAngle(E47) -> -174.2729583 | G47: =90 - Zenith($D$7,$H$5,F47) -> -83.84601248 | H47: =IF(F47<0,360-Azimuth(G47,$D$7,$H$5,F47),Azimuth(G47,$D$7,$H$5,F47)) -> 301.3488298
C50: Sun Path Graph Positions Calculations (Polar to Cartesian Co-ordinates)
D52: Time | E52: Radius | F52: Theta | G52: Value X | H52: Value Y
C53: Custom | D53: =D21 -> 12:00:00 | E53: =90-G21 -> 50.50881525 | F53: =90-H21 -> -83.18681778 | G53: =E53*COS(RADIANS(F53)) -> 5.991982982 | H53: =IF(Calculations!$AJ$8=TRUE,E53*SIN(RADIANS(F53)), NA()) -> -50.15213413
C54: Sun Rise | D54: =D22 -> 07:13:26.037 | E54: 90 | F54: -26.46067942 | G54: 80.57163281 | H54: =IF(Calculations!$AJ$8=TRUE,E54*SIN(RADIANS(F54)), NA()) -> -40.10251845
C55: Sun Set | D55: =D23 -> 17:32:22.943 | E55: 90 | F55: -153.5393206 | G55: -80.57163281 | H55: =IF(Calculations!$AJ$8=TRUE,E55*SIN(RADIANS(F55)), NA()) -> -40.10251845
C56: 24 Hour Time Sun Locations | D56: 01:00:00 | E56: 170.9753837 | F56: 19.52871133 | G56: =IF(OR(HOUR(D56)<HOUR($D$54), HOUR(D56)>HOUR($D$55)+1), NA(), E56*COS(RADIANS(F56))) ->  | H56: =IF(Calculations!$AJ$8=TRUE,IF(OR(HOUR(D56)<HOUR($D$54), HOUR(D56)>HOUR($D$55)+1), NA(), E56*SIN(RADIANS(F56))), NA()) -> 
D57: 02:00:00 | E57: 157.8056722 | F57: 3.234736737 | G57: =IF(OR(HOUR(D57)<HOUR($D$54), HOUR(D57)>HOUR($D$55)+1), NA(), E57*COS(RADIANS(F57))) ->  | H57: =IF(Calculations!$AJ$8=TRUE,IF(OR(HOUR(D57)<HOUR($D$54), HOUR(D57)>HOUR($D$55)+1), NA(), E57*SIN(RADIANS(F57))), NA()) -> 
D58: 03:00:00 | E58: 144.4199946 | F58: -3.49469105 | H58: =IF(Calculations!$AJ$8=TRUE,IF(OR(HOUR(D58)<HOUR($D$54), HOUR(D58)>HOUR($D$55)+1), NA(), E58*SIN(RADIANS(F58))), NA()) -> 
D59: 04:00:00 | E59: 131.1081504 | F59: -8.705440359 | H59: =IF(Calculations!$AJ$8=TRUE,IF(OR(HOUR(D59)<HOUR($D$54), HOUR(D59)>HOUR($D$55)+1), NA(), E59*SIN(RADIANS(F59))), NA()) -> 
D60: 05:00:00 | E60: 117.9734712 | F60: -13.69243256 | H60: =IF(Calculations!$AJ$8=TRUE,IF(OR(HOUR(D60)<HOUR($D$54), HOUR(D60)>HOUR($D$55)+1), NA(), E60*SIN(RADIANS(F60))), NA()) -> 
D61: 06:00:00 | E61: 105.1225891 | F61: -18.98341803 | H61: =IF(Calculations!$AJ$8=TRUE,IF(OR(HOUR(D61)<HOUR($D$54), HOUR(D61)>HOUR($D$55)+1), NA(), E61*SIN(RADIANS(F61))), NA()) -> 
D62: 07:00:00 | E62: 92.70173496 | F62: -24.97885493 | G62: 84.03075703 | H62: =IF(Calculations!$AJ$8=TRUE,IF(OR(HOUR(D62)<HOUR($D$54), HOUR(D62)>HOUR($D$55)+1), NA(), E62*SIN(RADIANS(F62))), NA()) -> -39.14643711
D63: 08:00:00 | E63: 80.93145268 | F63: -32.12100831 | G63: 68.54303401 | H63: =IF(Calculations!$AJ$8=TRUE,IF(OR(HOUR(D63)<HOUR($D$54), HOUR(D63)>HOUR($D$55)+1), NA(), E63*SIN(RADIANS(F63))), NA()) -> -43.03199417
D64: 09:00:00 | E64: 70.15849497 | F64: -40.96991229 | G64: 52.97345171 | H64: =IF(Calculations!$AJ$8=TRUE,IF(OR(HOUR(D64)<HOUR($D$54), HOUR(D64)>HOUR($D$55)+1), NA(), E64*SIN(RADIANS(F64))), NA()) -> -46.0003025
D65: 10:00:00 | E65: 60.9295996 | F65: -52.1980339 | G65: 37.3458334 | H65: =IF(Calculations!$AJ$8=TRUE,IF(OR(HOUR(D65)<HOUR($D$54), HOUR(D65)>HOUR($D$55)+1), NA(), E65*SIN(RADIANS(F65))), NA()) -> -48.14254704
D66: 11:00:00 | E66: 54.0535961 | F66: -66.35444544 | G66: 21.67968038 | H66: =IF(Calculations!$AJ$8=TRUE,IF(OR(HOUR(D66)<HOUR($D$54), HOUR(D66)>HOUR($D$55)+1), NA(), E66*SIN(RADIANS(F66))), NA()) -> -49.5154795
D67: 12:00:00 | E67: 50.50881525 | F67: -83.18681778 | G67: 5.991982982 | H67: =IF(Calculations!$AJ$8=TRUE,IF(OR(HOUR(D67)<HOUR($D$54), HOUR(D67)>HOUR($D$55)+1), NA(), E67*SIN(RADIANS(F67))), NA()) -> -50.15213413
D68: 13:00:00 | E68: 50.99832135 | F68: -100.9663861 | G68: -9.701567156 | H68: =IF(Calculations!$AJ$8=TRUE,IF(OR(HOUR(D68)<HOUR($D$54), HOUR(D68)>HOUR($D$55)+1), NA(), E68*SIN(RADIANS(F68))), NA()) -> -50.06703881
D69: 14:00:00 | E69: 55.41486938 | F69: -117.2646505 | G69: -25.38561935 | H69: =IF(Calculations!$AJ$8=TRUE,IF(OR(HOUR(D69)<HOUR($D$54), HOUR(D69)>HOUR($D$55)+1), NA(), E69*SIN(RADIANS(F69))), NA()) -> -49.25827929
D70: 15:00:00 | E70: 62.93339444 | F70: -130.7066064 | G70: -41.04426713 | H70: =IF(Calculations!$AJ$8=TRUE,IF(OR(HOUR(D70)<HOUR($D$54), HOUR(D70)>HOUR($D$55)+1), NA(), E70*SIN(RADIANS(F70))), NA()) -> -47.70723499
D71: 16:00:00 | E71: 72.5901669 | F71: -141.310703 | G71: -56.6600508 | H71: =IF(Calculations!$AJ$8=TRUE,IF(OR(HOUR(D71)<HOUR($D$54), HOUR(D71)>HOUR($D$55)+1), NA(), E71*SIN(RADIANS(F71))), NA()) -> -45.37588537
D72: 17:00:00 | E72: 83.63944133 | F72: -149.6982659 | G72: -72.21264431 | H72: =IF(Calculations!$AJ$8=TRUE,IF(OR(HOUR(D72)<HOUR($D$54), HOUR(D72)>HOUR($D$55)+1), NA(), E72*SIN(RADIANS(F72))), NA()) -> -42.20059416
D73: 18:00:00 | E73: 95.58905306 | F73: -156.5239277 | G73: -87.67681437 | H73: =IF(Calculations!$AJ$8=TRUE,IF(OR(HOUR(D73)<HOUR($D$54), HOUR(D73)>HOUR($D$55)+1), NA(), E73*SIN(RADIANS(F73))), NA()) -> -38.07943391
D74: 19:00:00 | E74: 108.1280169 | F74: -162.3161127 | H74: =IF(Calculations!$AJ$8=TRUE,IF(OR(HOUR(D74)<HOUR($D$54), HOUR(D74)>HOUR($D$55)+1), NA(), E74*SIN(RADIANS(F74))), NA()) -> 
D75: 20:00:00 | E75: 121.0572219 | F75: -167.4982768 | H75: =IF(Calculations!$AJ$8=TRUE,IF(OR(HOUR(D75)<HOUR($D$54), HOUR(D75)>HOUR($D$55)+1), NA(), E75*SIN(RADIANS(F75))), NA()) -> 
D76: 21:00:00 | E76: 134.2425476 | F76: -172.4794756 | H76: =IF(Calculations!$AJ$8=TRUE,IF(OR(HOUR(D76)<HOUR($D$54), HOUR(D76)>HOUR($D$55)+1), NA(), E76*SIN(RADIANS(F76))), NA()) -> 
D77: 22:00:00 | E77: 147.5822401 | F77: -177.8719883 | H77: =IF(Calculations!$AJ$8=TRUE,IF(OR(HOUR(D77)<HOUR($D$54), HOUR(D77)>HOUR($D$55)+1), NA(), E77*SIN(RADIANS(F77))), NA()) -> 
D78: 23:00:00 | E78: 160.962642 | F78: -185.4706145 | H78: =IF(Calculations!$AJ$8=TRUE,IF(OR(HOUR(D78)<HOUR($D$54), HOUR(D78)>HOUR($D$55)+1), NA(), E78*SIN(RADIANS(F78))), NA()) -> 
D79: 1 | E79: 173.8460125 | F79: -211.3488298 | H79: =IF(Calculations!$AJ$8=TRUE,IF(OR(HOUR(D79)<HOUR($D$54), HOUR(D79)>HOUR($D$55)+1), NA(), E79*SIN(RADIANS(F79))), NA()) -> 

Sheet Calculations (hidden)
B3: Altitude Lines Calculations | N3: Azimuth Label Calculations | U3: Altitude Label Calculations | AB3: Azimuth N,E,W,S Labels | AI3: Graph Checkbox Calculations
C5: 90 | D5: =C5-10 -> 80 | E5: 70 | F5: 60 | G5: 50 | H5: 40 | I5: 30 | J5: 20 | K5: 10 | L5: 0 | O5: R | P5: Theta | Q5: X | R5: Y | S5: Label | V5: R | W5: Theta | X5: X | Y5: Y | Z5: Label | AC5: R | AD5: Theta | AE5: X | AF5: Y | AG5: Label | AI5: Custom | AJ5: TRUE
B6: 0 | C6: 1 | D6: 1 | E6: 1 | F6: 1 | G6: 1 | H6: 1 | I6: 1 | J6: 1 | K6: 1 | L6: 1 | N6: 0 | O6: 90 | P6: =90-Calculations!B6 -> 90 | Q6: =O6*COS(RADIANS(P6)) -> 5.513168047e-15 | R6: =O6*SIN(RADIANS(P6)) -> 90 | S6: 0 | U6: 0 | V6: =U6 -> 0 | W6: 90 | X6: =V6*COS(RADIANS(W6)) -> 0 | Y6: =V6*SIN(RADIANS(W6)) -> 0 | Z6: =90-U6 -> 90 | AB6: 0 | AC6: 90 | AD6: =90-AB6 -> 90 | AE6: =AC6*COS(RADIANS(AD6)) -> 5.513168047e-15 | AF6: =AC6*SIN(RADIANS(AD6)) -> 90 | AG6: N | AI6: Summer Solstice | AJ6: TRUE
B7: 30 | C7: 1 | D7: 1 | E7: 1 | F7: 1 | G7: 1 | H7: 1 | I7: 1 | J7: 1 | K7: 1 | L7: 1 | N7: 30 | O7: 90 | P7: =90-Calculations!B7 -> 60 | Q7: 45 | R7: 77.94228634 | S7: =Calculations!B7 -> 30 | U7: =U6+10 -> 10 | V7: 10 | W7: 90 | X7: 6.125742275e-16 | Y7: 10 | Z7: 80 | AB7: 90 | AC7: 90 | AD7: =90-AB7 -> 0 | AE7: =AC7*COS(RADIANS(AD7)) -> 90 | AF7: =AC7*SIN(RADIANS(AD7)) -> 0 | AG7: E | AI7: Equinox | AJ7: TRUE
B8: =B7+30 -> 60 | C8: 1 | D8: 1 | E8: 1 | F8: 1 | G8: 1 | H8: 1 | I8: 1 | J8: 1 | K8: 1 | L8: 1 | N8: =N7+30 -> 60 | O8: 90 | P8: =90-Calculations!B8 -> 30 | Q8: 77.94228634 | R8: 45 | S8: =Calculations!B8 -> 60 | U8: 20 | V8: 20 | W8: 90 | X8: 1.225148455e-15 | Y8: 20 | Z8: 70 | AB8: 180 | AC8: 90 | AD8: =90-AB8 -> -90 | AE8: =AC8*COS(RADIANS(AD8)) -> 5.513168047e-15 | AF8: =AC8*SIN(RADIANS(AD8)) -> -90 | AG8: S | AI8: Winter Solstice | AJ8: TRUE
B9: 90 | C9: 1 | D9: 1 | E9: 1 | F9: 1 | G9: 1 | H9: 1 | I9: 1 | J9: 1 | K9: 1 | L9: 1 | N9: 90 | O9: 90 | P9: =90-Calculations!B9 -> 0 | Q9: 90 | R9: 0 | S9: 90 | U9: 30 | V9: 30 | W9: 90 | X9: 1.837722682e-15 | Y9: 30 | Z9: 60 | AB9: 270 | AC9: 90 | AD9: =90-AB9 -> -180 | AE9: =AC9*COS(RADIANS(AD9)) -> -90 | AF9: =AC9*SIN(RADIANS(AD9)) -> -1.102633609e-14 | AG9: W
B10: 120 | C10: 1 | D10: 1 | E10: 1 | F10: 1 | G10: 1 | H10: 1 | I10: 1 | J10: 1 | K10: 1 | L10: 1 | N10: 120 | O10: 90 | P10: =90-Calculations!B10 -> -30 | Q10: 77.94228634 | R10: -45 | S10: =Calculations!B10 -> 120 | U10: 40 | V10: 40 | W10: 90 | X10: 2.45029691e-15 | Y10: 40 | Z10: 50 | AI10: Graph Custom Time (in Minutes)
B11: 150 | C11: 1 | D11: 1 | E11: 1 | F11: 1 | G11: 1 | H11: 1 | I11: 1 | J11: 1 | K11: 1 | L11: 1 | N11: 150 | O11: 90 | P11: =90-Calculations!B11 -> -60 | Q11: 45 | R11: -77.94228634 | S11: =Calculations!B11 -> 150 | U11: 50 | V11: 50 | W11: 90 | X11: 3.062871137e-15 | Y11: 50 | Z11: 40
B12: 180 | C12: 1 | D12: 1 | E12: 1 | F12: 1 | G12: 1 | H12: 1 | I12: 1 | J12: 1 | K12: 1 | L12: 1 | N12: 180 | O12: 90 | P12: =90-Calculations!B12 -> -90 | Q12: 5.513168047e-15 | R12: -90 | S12: 180 | U12: 60 | V12: 60 | W12: 90 | X12: 3.675445365e-15 | Y12: 60 | Z12: 30 | AI12: Time | AJ12: 554
B13: 210 | C13: 1 | D13: 1 | E13: 1 | F13: 1 | G13: 1 | H13: 1 | I13: 1 | J13: 1 | K13: 1 | L13: 1 | N13: 210 | O13: 90 | P13: =90-Calculations!B13 -> -120 | Q13: -45 | R13: -77.94228634 | S13: =Calculations!B13 -> 210 | U13: 70 | V13: 70 | W13: 90 | X13: 4.288019592e-15 | Y13: 70 | Z13: 20 | AB13: Custom Azimuth Line Calculations | AI13: Sunrise | AJ13: =Custom!D22*1440 -> 363.1863864
B14: 240 | C14: 1 | D14: 1 | E14: 1 | F14: 1 | G14: 1 | H14: 1 | I14: 1 | J14: 1 | K14: 1 | L14: 1 | N14: 240 | O14: 90 | P14: =90-Calculations!B14 -> -150 | Q14: -77.94228634 | R14: -45 | S14: =Calculations!B14 -> 240 | U14: 80 | V14: 80 | W14: 90 | X14: 4.90059382e-15 | Y14: 80 | Z14: 10 | AI14: Sunset | AJ14: =Custom!D23*1440 -> 1140.034142
B15: 270 | C15: 1 | D15: 1 | E15: 1 | F15: 1 | G15: 1 | H15: 1 | I15: 1 | J15: 1 | K15: 1 | L15: 1 | N15: 270 | O15: 90 | P15: =90-Calculations!B15 -> -180 | Q15: -90 | R15: -1.102633609e-14 | S15: 270 | U15: 90 | V15: 90 | W15: 90 | X15: 5.513168047e-15 | Y15: 90 | Z15: 0 | AC15: R | AD15: Theta | AE15: X | AF15: Y | AG15: Label
B16: 300 | C16: 1 | D16: 1 | E16: 1 | F16: 1 | G16: 1 | H16: 1 | I16: 1 | J16: 1 | K16: 1 | L16: 1 | N16: 300 | O16: 90 | P16: =90-Calculations!B16 -> -210 | Q16: -77.94228634 | R16: 45 | S16: =Calculations!B16 -> 300 | AB16: Origin | AC16: 0 | AD16: 0 | AE16: =IF(Calculations!$AJ$5=TRUE,AC16*COS(RADIANS(AD16)), NA()) -> 0 | AF16: =IF(Calculations!$AJ$5=TRUE,AC16*SIN(RADIANS(AD16)),NA()) -> 0 | AG16: Start | AI16: Graph Custom Date (in Numbers)
B17: 330 | C17: 1 | D17: 1 | E17: 1 | F17: 1 | G17: 1 | H17: 1 | I17: 1 | J17: 1 | K17: 1 | L17: 1 | N17: 330 | O17: 90 | P17: =90-Calculations!B17 -> -240 | Q17: -45 | R17: 77.94228634 | S17: =Calculations!B17 -> 330 | AB17: Edge | AC17: 90 | AD17: =Custom!F53 -> -58.79008878 | AE17: =IF(Calculations!$AJ$5=TRUE,AC17*COS(RADIANS(AD17)), NA()) -> 46.6357469 | AF17: =IF(Calculations!$AJ$5=TRUE,AC17*SIN(RADIANS(AD17)),NA()) -> -76.97471735 | AG17: End
AI18: Custom | AJ18: 36 | AK18: =DATE('Sun Path'!L4,1,Calculations!AJ18) -> 43136
AI19: Start | AJ19: 1 | AK19: =DATE('Sun Path'!L4,1,Calculations!AJ19) -> 43101
AB20: Custom Altitude Dot Calculations | AI20: End | AJ20: 365 | AK20: =DATE('Sun Path'!L4,1,Calculations!AJ20) -> 43465
AE22: X | AF22: Y | AI22: Solar Irradiance Animation Calculations | AQ22: Irradiance Graph | AS22: 3 | AT22: =IF(Calculations!AS22=1, 'Solar Irradiance'!K8, IF(Calculations!AS22=2, 'Solar Irradiance'!L8, 'Solar Irradiance'!M8)) -> 30
AB23: Altitude | AC23: =Custom!E53 -> 14.93316313 | AD23: 90 | AE23: =IF(Calculations!$AJ$5=TRUE,AC23*COS(RADIANS(AD23)),NA()) -> 9.147670869e-16 | AF23: =IF(Calculations!$AJ$5=TRUE,AC23*SIN(RADIANS(AD23)),NA()) -> 14.93316313 | AG23: Between
AI24: Sun | AM24: Solar Cell | AQ24: Ideal Case | AR24: Season-wise | AS24: Custom
AI25: Angle | AJ25: X | AK25: Y | AM25: Point A | AN25: =10*COS(RADIANS(180-AT22)) -> -8.660254038 | AO25: =10*SIN(RADIANS(180-AT22)) -> 5 | AQ25: 1 | AR25: 2 | AS25: 3
AI26: =90-'Solar Irradiance'!K8 -> 39.07141959 | AJ26: =100*COS(RADIANS(AI26)) -> 77.63609056 | AK26: =100*SIN(RADIANS(AI26)) -> 63.02886198 | AM26: Point B | AN26: =-10*COS(RADIANS(180-AT22)) -> 8.660254038 | AO26: =-10*SIN(RADIANS(180-AT22)) -> -5
AI28: Semi Circle | AM28: Line
AI29: Quarter | AJ29: Visible | AK29: 25 | AM29: Sun | AN29: =96*COS(RADIANS(AI26)) -> 74.53064694 | AO29: =96*SIN(RADIANS(AI26)) -> 60.5077075
AI30: Rest | AJ30: Invisible | AK30: 75 | AM30: Centre | AN30: 0 | AO30: 0
AI32: Normal to panel | AM32: Animation
AI33: Angle | AJ33: X | AK33: Y | AM33: Sunrise | AN33: ='Solar Irradiance'!D22 -> 06:02:58.074 | AO33: =AN33*24*60 -> 362.9678972
AI34: =90-AT22 -> 60 | AJ34: =99*COS(RADIANS(AI34)) -> 49.5 | AK34: =99*SIN(RADIANS(AI34)) -> 85.73651497 | AM34: Sunset | AN34: ='Solar Irradiance'!D23 -> 19:00:11.654 | AO34: =AN34*24*60 -> 1140.194231
AJ35: =-5*COS(RADIANS(AI34)) -> -2.5 | AK35: =-5*SIN(RADIANS(AI34)) -> -4.330127019
AM36: Extra Sun Rays
AI37: Compass Sun - Center Line
AI38: =IF('Solar Irradiance'!H6<0,90-(360-'Solar Irradiance'!H15),90-('Solar Irradiance'!H15)) -> -3.895482876 | AJ38: =90*COS(RADIANS(AI38)) -> 89.79206742 | AK38: =90*SIN(RADIANS(AI38)) -> -6.11429709 | AM38: Sun | AN38: =98*COS(RADIANS(AI26)) -> 76.08336875 | AO38: =98*SIN(RADIANS(AI26)) -> 61.76828474
AJ39: 0 | AK39: 0 | AM39: Sky | AN39: =80*COS(RADIANS(AI26+10)) -> 52.4094215 | AO39: =80*SIN(RADIANS(AI26+10)) -> 60.44214207
AI41: Compass Sun Marker | AM41: Sun | AN41: =AN38 -> 76.08336875 | AO41: =AO38 -> 61.76828474
AI42: =AI38 -> -3.895482876 | AJ42: =87.5*COS(RADIANS(AI42)) -> 87.29784332 | AK42: =87.5*SIN(RADIANS(AI42)) -> -5.944455504 | AM42: Sky | AN42: =80*COS(RADIANS(AI26+5)) -> 57.47786761 | AO42: =80*SIN(RADIANS(AI26+5)) -> 55.64435941
AI44: Another Panel for Compass | AM44: Sun | AN44: =AN38 -> 76.08336875 | AO44: =AO38 -> 61.76828474
AI45: =AI42+90 -> 86.10451712 | AJ45: =10*COS(RADIANS(AI45)) -> 0.6793663433 | AK45: =10*SIN(RADIANS(AI45)) -> 9.97689638 | AM45: Sky | AN45: =80*COS(RADIANS(AI26-5)) -> 66.26719126 | AO45: =80*SIN(RADIANS(AI26-5)) -> 44.81806959
AJ46: =-10*COS(RADIANS(AI45)) -> -0.6793663433 | AK46: =-10*SIN(RADIANS(AI45)) -> -9.97689638
AM47: Sun | AN47: =AN38 -> 76.08336875 | AO47: =AO38 -> 61.76828474
AI48: Angle Arc Points | AM48: Sky | AN48: =80*COS(RADIANS(AI26-10)) -> 69.92117674 | AO48: =80*SIN(RADIANS(AI26-10)) -> 38.87195703
AH49: Length | AI49: Angle | AJ49: X | AK49: Y
AH50: 20 | AI50: =90-AT22 -> 60 | AJ50: =AH50*COS(RADIANS(AI50)) -> 10 | AK50: =AH50*SIN(RADIANS(AI50)) -> 17.32050808
AI51: =IF(AI50>AI52, ((AI50-AI52)/2) + AI52, ((AI52-AI50)/2) + AI50) -> 54.7678549 | AJ51: =AH50*COS(RADIANS(AI51)) -> 11.53781349 | AK51: =AH50*SIN(RADIANS(AI51)) -> 16.33642739
AI52: =IF(AI50>AI54, ((AI50-AI54)/2) + AI54, ((AI54-AI50)/2) + AI50) -> 49.5357098 | AJ52: =AH50*COS(RADIANS(AI52)) -> 12.97947993 | AK52: =AH50*SIN(RADIANS(AI52)) -> 15.21621177
AI53: =IF(AI52>AI54, ((AI52-AI54)/2) + AI54, ((AI54-AI52)/2) + AI52) -> 44.30356469 | AJ53: =AH50*COS(RADIANS(AI53)) -> 14.3129856 | AK53: =AH50*SIN(RADIANS(AI53)) -> 13.96919623
AI54: =90-'Solar Irradiance'!K8 -> 39.07141959 | AJ54: =AH50*COS(RADIANS(AI54)) -> 15.52721811 | AK54: =AH50*SIN(RADIANS(AI54)) -> 12.6057724
AI56: Angle Point
AH57: Length | AI57: Mid Point | AJ57: X | AK57: Y
AH58: 30 | AI58: =AI52 -> 49.5357098 | AJ58: =AH58*COS(RADIANS(AI58)) -> 19.4692199 | AK58: =AH58*SIN(RADIANS(AI58)) -> 22.82431766
AI60: Angle Value | AJ60: =TEXT(IF(AI50>AI54, AI50-AI54, AI54-AI50), "0.00") & "°" -> 20.93°
AI62: Surface
AH63: Length | AI63: Angle | AJ63: X | AK63: Y
AH64: 110 | AI64: 0 | AJ64: =AH64*COS(RADIANS(AI64)) -> 110 | AK64: =AH64*SIN(RADIANS(AI64)) -> 0
AH65: -60 | AJ65: =AH65*COS(RADIANS(AI64)) -> -60 | AK65: =AH65*SIN(RADIANS(AI64)) -> 0
AH68: Length | AI68: Solar Cell Line Extended
AH69: 80 | AI69: Point A | AJ69: =AH69*COS(RADIANS(180-AT22)) -> -69.2820323 | AK69: =AH69*SIN(RADIANS(180-AT22)) -> 40
AH70: -60 | AI70: Point B | AJ70: =AH70*COS(RADIANS(180-AT22)) -> 51.96152423 | AK70: =AH70*SIN(RADIANS(180-AT22)) -> -30
AI73: Solar Panel Angle Arc Points
AH74: Length | AI74: Angle | AJ74: X | AK74: Y
AH75: 20 | AI75: =180-AT22 -> 150 | AJ75: =AH75*COS(RADIANS(AI75)) -> -17.32050808 | AK75: =AH75*SIN(RADIANS(AI75)) -> 10
AI76: =IF(AI75>AI77, ((AI75-AI77)/2) + AI77, ((AI77-AI75)/2) + AI75) -> 157.5 | AJ76: =AH75*COS(RADIANS(AI76)) -> -18.47759065 | AK76: =AH75*SIN(RADIANS(AI76)) -> 7.653668647
AI77: =IF(AI75>AI79, ((AI75-AI79)/2) + AI79, ((AI79-AI75)/2) + AI75) -> 165 | AJ77: =AH75*COS(RADIANS(AI77)) -> -19.31851653 | AK77: =AH75*SIN(RADIANS(AI77)) -> 5.176380902
AI78: =IF(AI77>AI79, ((AI77-AI79)/2) + AI79, ((AI79-AI77)/2) + AI77) -> 172.5 | AJ78: =AH75*COS(RADIANS(AI78)) -> -19.82889723 | AK78: =AH75*SIN(RADIANS(AI78)) -> 2.610523844
AI79: 180 | AJ79: =AH75*COS(RADIANS(AI79)) -> -20 | AK79: =AH75*SIN(RADIANS(AI79)) -> 2.45029691e-15
AI81: Solar Panel Angle Point
AH82: Length | AI82: Mid Point | AJ82: X | AK82: Y
AH83: 30 | AI83: =AI77 -> 165 | AJ83: =AH83*COS(RADIANS(AI77)) -> -28.97777479 | AK83: =AH83*SIN(RADIANS(AI77)) -> 7.764571353
AI85: Angle Value | AJ85: =TEXT(AT22, "0.00") & "°" -> 30.00°
AI88: Compass Angle Point
AH89: Length | AI89: Angle | AJ89: X | AK89: Y
AH90: 20 | AI90: 90 | AJ90: =AH90*COS(RADIANS(AI90)) -> 1.225148455e-15 | AK90: =AH90*SIN(RADIANS(AI90)) -> 20
